Workbook

Sheet README
B2: With the values your entered, the CDI behavior will be the following:
H4: Where to change that?
A7: A) | B7: =CONCATENATE("Flat advance from ",LowRPM!L7," to ",Advance_curve!C7," RPM") -> Flat advance from 76 to 643 RPM | H7: cell I2 in tab "lowRPM"
A9: B) | B9: =CONCATENATE("Advance curve is freely adjustable from ",Advance_curve!C7, " to ",Advance_curve!D9," RPM") -> Advance curve is freely adjustable from 643 to 5095 RPM | H9: cell B9 in tab "Advance_curve"
A11: C) | B11: =CONCATENATE("The ",Advance_curve!C7," RPM when the processor swap from [advance_curve] tab to the flat [advance_low_rpm] tab is adjustable by cell M42 in tab [Advance_curve]") -> The 643 RPM when the processor swap from [advance_curve] tab to the flat [advance_low_rpm] tab is adjustable by cell M42 in tab [Advance_curve]
B13: Eprom values to burn into the microcontroller | H13: cells O18 to 035 in tab "Advance_curve"
B15: =CONCATENATE("No spark when engine goes above ",Advance_curve!D9,"RPM - Act as absolute rev-limiter") -> No spark when engine goes above 5095RPM - Act as absolute rev-limiter | H15: cell B9 in tab "Advance_curve"
B17: Optional rev-limiter activated by JP2 jumper | H17: cell M30 in tab "Advance_curve"
B19: ONLY YELLOW CELLS ARE CHANGEABLE

Sheet Advance_curve
A1: 27/03/2021 | D1: Version 16F1827 v7.9r25c1 | K1: 79 | L1: 25 | M1: 1
B2: Proc: | C2: 16F1827
B3: Clock: | C3: 16 | D3: MHz | F3: 1 i | K3: Step
B4: Fosc/4 | C4: =C3/4 -> 4 | D4: MHz | F4: pickup position | H4: compute (us) | I4: =O28 -> 26 | K4: (us)
B5: TMR1h max | C5: =MAX(B173:B335) -> 182 | F5: 50 | G5: degrees BTDC | K5: 40 | L5: =IF(MAX(K9:K103)>254,"Some warning. Increase STEP cell k5 ?","") -> 
B6: Frq min | C6: =MIN(C174:C335) -> 10.73145604 | H6: hysteresis | I6: =O42*200 -> 200
B7: RPM min | C7: =MIN(D175:D335) -> 643 | F7: 4 i | K7: =IF(ISERROR(K9),"Load DECHEX macro","") -> 
B8: TIMER1H count | C8: Frq (Hz) | D8: RPM | E8: time for 1° (µs) | F8: Advance (degrees) | G8: Delay needed (ms) | H8: Delay nedeed (µs) | I8: Delay to wait (µs) | J8: @ map | K8: Values for the map
A9: 3 g | B9: 23 | C9: =IFERROR(1000000/(B9*256*($N$30/$C$4)),"") -> 84.91847826 | D9: =INT(60*C9*$N$25/2*$N$24) -> 5095 | E9: =((1000*1000*60)/($N$24*D9))/360 -> 32.71180896 | F9: 39 | G9: =(E9*($F$5-F9))/1000 -> 0.3598298986 | H9: =E9*($F$5-F9) -> 359.8298986 | I9: =IF($H9>$I$4+$I$6,INT($H9-$I$4-$I$6),"out of range") -> 133 | J9: 0 | K9: =IFERROR(IF($I9/$K$5>255,255,IF($I9>0.01,INT($I9/$K$5),1)),255) -> 3 | L9: =IF($I9/$K$5>255,CONCATENATE("WARNING: Timing will be more then ",F9,"°"),"") ->  | Y9: =CONCATENATE(K9," ;",ROUND(D9,0),"rpm | ",ROUND(F9,1),"° | ",,ROUND(G9,2),"ms ") -> 3 ;5095rpm | 39° | 0,36ms
A10: =IF($B10>255,CONCATENATE("ERROR: Timer1H too large"),"") ->  | B10: =IF((B9+1)<(N$44+$B$9),B9+1,"- End -") -> 24 | C10: =IFERROR(1000000/(B10*256*($N$30/$C$4)),"") -> 81.38020833 | D10: =INT(60*C10*$N$25/2*$N$24) -> 4882 | E10: 34.13901407 | F10: 39 | G10: 0.3755291547 | H10: 375.5291547 | I10: =IF($H10>$I$4+$I$6,INT($H10-$I$4-$I$6),"out of range") -> 149 | J10: 1 | K10: 3 | Y10: 3 ;4882rpm | 39° | 0,38ms
B11: 25 | C11: 78.125 | D11: =INT(60*C11*$N$25/2*$N$24) -> 4687 | E11: 35.55934855 | F11: 39 | G11: 0.3911528341 | H11: 391.1528341 | I11: =IF($H11>$I$4+$I$6,INT($H11-$I$4-$I$6),"out of range") -> 165 | J11: 2 | K11: 4 | Y11: 4 ;4687rpm | 39° | 0,39ms
B12: 26 | C12: 75.12019231 | D12: 4507 | E12: 36.97951335 | F12: 39 | G12: 0.4067746468 | H12: 406.7746468 | I12: 180 | J12: 3 | K12: 4 | Y12: 4 ;4507rpm | 39° | 0,41ms
B13: 27 | C13: 72.33796296 | D13: 4340 | E13: 38.40245776 | F13: 39 | G13: 0.4224270353 | H13: 422.4270353 | I13: 196 | J13: 4 | K13: 4 | Y13: 4 ;4340rpm | 39° | 0,42ms
B14: 28 | C14: 69.75446429 | D14: 4185 | E14: 39.82477101 | F14: 39 | G14: 0.4380724811 | H14: 438.0724811 | I14: 212 | J14: 5 | K14: 5 | Y14: 5 ;4185rpm | 39° | 0,44ms
B15: 29 | C15: 67.34913793 | D15: 4040 | E15: 41.25412541 | F15: 39 | G15: 0.4537953795 | H15: 453.7953795 | I15: 227 | J15: 6 | K15: 5 | Y15: 5 ;4040rpm | 39° | 0,45ms
B16: 30 | C16: 65.10416667 | D16: 3906 | E16: 42.66939751 | F16: 39 | G16: 0.4693633726 | H16: 469.3633726 | I16: 243 | J16: 7 | K16: 6 | Y16: 6 ;3906rpm | 39° | 0,47ms
B17: 31 | C17: 63.00403226 | D17: 3780 | E17: 44.09171076 | F17: 39 | G17: 0.4850088183 | H17: 485.0088183 | I17: 259 | J17: 8 | K17: 6 | O17: EEprom data ð | P17: =CONCATENATE(EEPROM16!O1," for PIC 16F1827") -> INTEL 16HEX format for PIC 16F1827 | Y17: 6 ;3780rpm | 39° | 0,49ms
B18: 32 | C18: 61.03515625 | D18: 3662 | E18: 45.51247042 | F18: 39 | G18: 0.5006371746 | H18: 500.6371746 | I18: 274 | J18: 9 | K18: 6 | T18: MCH format | Y18: 6 ;3662rpm | 39° | 0,5ms
B19: 33 | C19: 59.18560606 | D19: 3551 | E19: 46.93513564 | F19: 39 | G19: 0.5162864921 | H19: 516.2864921 | I19: 290 | J19: 10 | K19: 7 | P19: =EEPROM16!O2 -> :020000040000FA | R19: =EEPROM16!Q1 -> RAW format | Y19: 7 ;3551rpm | 39° | 0,52ms
B20: 34 | C20: 57.44485294 | D20: 3446 | E20: 48.3652544 | F20: 39 | G20: 0.5320177984 | H20: 532.0177984 | I20: 306 | J20: 11 | K20: 7 | P20: =EEPROM16!O3 -> :020000040001F9 | T20: =DEC2HEX(EEPROM16!F$4,2) -> 03 | Y20: 7 ;3446rpm | 39° | 0,53ms
B21: 35 | C21: 55.80357143 | D21: 3348 | E21: 49.78096376 | F21: 39 | G21: 0.5475906014 | H21: 547.5906014 | I21: 321 | J21: 12 | K21: 8 | P21: =EEPROM16!O4 -> :10E0000003000300040004000400050005000600EE | R21: =EEPROM16!Q4 -> 03 03 04 04 04 05 05 06 | T21: =DEC2HEX(EEPROM16!G$4,2) -> 03 | Y21: 8 ;3348rpm | 39° | 0,55ms
B22: 36 | C22: 54.25347222 | D22: 3255 | E22: 51.20327701 | F22: 39 | G22: 0.5632360471 | H22: 563.2360471 | I22: 337 | J22: 13 | K22: 8 | N22: 2 i | P22: =EEPROM16!O5 -> :10E0100006000600070007000800080008000900C5 | R22: =EEPROM16!Q5 -> 06 06 07 07 08 08 08 09 | T22: =DEC2HEX(EEPROM16!H$4,2) -> 04 | Y22: 8 ;3255rpm | 39° | 0,56ms
B23: 37 | C23: 52.78716216 | D23: 3167 | E23: 52.62603936 | F23: 39 | G23: 0.578886433 | H23: 578.886433 | I23: 352 | J23: 14 | K23: 8 | P23: =EEPROM16!O6 -> :10E0200009000C000E00100011001300150017006D | R23: =EEPROM16!Q6 -> 09 0C 0E 10 11 13 15 17 | T23: =DEC2HEX(EEPROM16!I$4,2) -> 04 | Y23: 8 ;3167rpm | 39° | 0,58ms
B24: 38 | C24: 51.39802632 | D24: 3083 | E24: 54.05989837 | F24: 39 | G24: 0.594658882 | H24: 594.658882 | I24: 368 | J24: 15 | K24: 9 | M24: Number of cylinder | N24: 1 | P24: =EEPROM16!O7 -> :10E0300018001A001C001E001F00210023002500EC | R24: =EEPROM16!Q7 -> 18 1A 1C 1E 1F 21 23 25 | T24: =DEC2HEX(EEPROM16!J$4,2) -> 04 | Y24: 9 ;3083rpm | 39° | 0,59ms
B25: 39 | C25: 50.08012821 | D25: 3004 | E25: 55.48158012 | F25: 39 | G25: 0.6102973813 | H25: 610.2973813 | I25: 384 | J25: 16 | K25: 9 | N25: =IF(N26="4 no wasted spark",4,2) -> 2 | P25: =EEPROM16!O8 -> :10E04000270028002A002C002E002F00310033006A | R25: =EEPROM16!Q8 -> 27 28 2A 2C 2E 2F 31 33 | T25: =DEC2HEX(EEPROM16!K$4,2) -> 05 | Y25: 9 ;3004rpm | 39° | 0,61ms
B26: 40 | C26: 48.828125 | D26: 2929 | E26: 56.90224195 | F26: 37.1045273 | G26: 0.7337813078 | H26: 733.7813078 | I26: 507 | J26: 17 | K26: 12 | M26: Strokes | N26: 4 wasted spark | P26: =EEPROM16!O9 -> :10E050003500360038003A003C003D003F004100EA | R26: =EEPROM16!Q9 -> 35 36 38 3A 3C 3D 3F 41 | T26: =DEC2HEX(EEPROM16!L$4,2) -> 05 | Y26: 12 ;2929rpm | 37,1° | 0,73ms
B27: 41 | C27: 47.63719512 | D27: 2858 | E27: 58.31583858 | F27: 36.22170439 | G27: 0.8034928625 | H27: 803.4928625 | I27: 577 | J27: 18 | K27: 14 | P27: =EEPROM16!O10 -> :10E0600043004500460048004A004C004D004F0068 | R27: =EEPROM16!Q10 -> 43 45 46 48 4A 4C 4D 4F | T27: =DEC2HEX(EEPROM16!M$4,2) -> 06 | Y27: 14 ;2858rpm | 36,2° | 0,8ms
B28: 42 | C28: 46.50297619 | D28: 2790 | E28: 59.73715651 | F28: 35.37782956 | G28: 0.8734868841 | H28: 873.4868841 | I28: 647 | J28: 19 | K28: 16 | M28: Ignition type | N28: DCCDI | O28: =IF(N28="ACCDI",42,26) -> 26 | P28: =EEPROM16!O11 -> :10E07000510053005400560058005A005C005D00E7 | R28: =EEPROM16!Q11 -> 51 53 54 56 58 5A 5C 5D | T28: =DEC2HEX(EEPROM16!F$5,2) -> 06 | Y28: 16 ;2790rpm | 35,4° | 0,87ms
B29: 43 | C29: 45.42151163 | D29: 2725 | E29: 61.16207951 | F29: 34.5729028 | G29: 0.9435533458 | H29: 943.5533458 | I29: 717 | J29: 20 | K29: 17 | P29: =EEPROM16!O12 -> :10E080005F00610063006400660068006A006C0065 | R29: =EEPROM16!Q12 -> 5F 61 63 64 66 68 6A 6C | T29: =DEC2HEX(EEPROM16!G$5,2) -> 06 | Y29: 17 ;2725rpm | 34,6° | 0,94ms
B30: 44 | C30: 44.38920455 | D30: 2663 | E30: 62.58605583 | F30: 33.8069241 | G30: 1.013460752 | H30: 1013.460752 | I30: 787 | J30: 21 | K30: 19 | M30: prescaler | N30: 8 | P30: =EEPROM16!O13 -> :10E090006D006F007200760079007C007F008100C7 | R30: =EEPROM16!Q13 -> 6D 6F 72 76 79 7C 7F 81 | T30: =DEC2HEX(EEPROM16!H$5,2) -> 07 | Y30: 19 ;2663rpm | 33,8° | 1,01ms
B31: 45 | C31: 43.40277778 | D31: 2604 | E31: 64.00409626 | F31: 33.06691079 | G31: 1.083787072 | H31: 1083.787072 | I31: 857 | J31: 22 | K31: 21 | P31: =EEPROM16!O14 -> :10E0A0003400350036003700380039003A003B00B4 | R31: =EEPROM16!Q14 -> 34 35 36 37 38 39 3A 3B | T31: =DEC2HEX(EEPROM16!I$5,2) -> 07 | Y31: 21 ;2604rpm | 33,1° | 1,08ms
B32: 46 | C32: 42.45923913 | D32: 2547 | E32: 65.4364612 | F32: 32.36584554 | G32: 1.153916664 | H32: 1153.916664 | I32: 927 | J32: 23 | K32: 23 | M32: output width | N32: 2000 | O32: us | P32: =EEPROM16!O15 -> :10E0B0003C003D003E003F003F0040004200490060 | R32: =EEPROM16!Q15 -> 3C 3D 3E 3F 3F 40 42 49 | T32: =DEC2HEX(EEPROM16!J$5,2) -> 08 | Y32: 23 ;2547rpm | 32,4° | 1,15ms
B33: 47 | C33: 41.55585106 | D33: 2493 | E33: 66.85385747 | F33: 31.69074567 | G33: 1.224044279 | H33: 1224.044279 | I33: 998 | J33: 24 | K33: 24 | P33: =EEPROM16!O16 -> :10E0C00049004A004B004B004C004D004D004E00F3 | R33: =EEPROM16!Q16 -> 49 4A 4B 4B 4C 4D 4D 4E | T33: =DEC2HEX(EEPROM16!K$5,2) -> 08 | Y33: 24 ;2493rpm | 31,7° | 1,22ms
B34: 48 | C34: 40.69010417 | D34: 2441 | E34: 68.27802813 | F34: 31.04161119 | G34: 1.294441405 | H34: 1294.441405 | I34: 1068 | J34: 25 | K34: 26 | M34: Optional Rev Limit | N34: 5095 | O34: RPM | P34: =EEPROM16!O17 -> :10E0D0004F004F00500050005100520052005300BA | R34: =EEPROM16!Q17 -> 4F 4F 50 50 51 52 52 53 | T34: =DEC2HEX(EEPROM16!L$5,2) -> 08 | Y34: 26 ;2441rpm | 31° | 1,29ms
B35: 49 | C35: 39.85969388 | D35: 2391 | E35: 69.70584135 | F35: 30.41844208 | G35: 1.36494897 | H35: 1364.94897 | I35: 1138 | J35: 26 | K35: 28 | P35: =EEPROM16!O18 -> :10E0E0005400540055005600560057005700580081 | R35: =EEPROM16!Q18 -> 54 54 55 56 56 57 57 58 | T35: =DEC2HEX(EEPROM16!M$5,2) -> 09 | Y35: 28 ;2391rpm | 30,4° | 1,36ms
B36: 50 | C36: 39.0625 | D36: 2343 | E36: 71.13387395 | F36: 29.82123835 | G36: 1.435393488 | H36: 1435.393488 | I36: 1209 | J36: 27 | K36: 30 | M36: Nbr of teeth on rotor | N36: 1 | O36: =IF(N36=2,1,0) -> 0 | P36: =EEPROM16!O19 -> :10E0F000590059005A005B005B005C005D005D0048 | R36: =EEPROM16!Q19 -> 59 59 5A 5B 5B 5C 5D 5D | T36: =DEC2HEX(EEPROM16!F$6,2) -> 09 | Y36: 30 ;2343rpm | 29,8° | 1,44ms
B37: 51 | C37: 38.29656863 | D37: 2297 | E37: 72.55840952 | F37: 29.25 | G37: 1.505586998 | H37: 1505.586998 | I37: 1279 | J37: 28 | K37: 31 | P37: =EEPROM16!O20 -> :10E100005E005F005F00600060006100620062000E | R37: =EEPROM16!Q20 -> 5E 5F 5F 60 60 61 62 62 | T37: =DEC2HEX(EEPROM16!G$6,2) -> 0C | Y37: 31 ;2297rpm | 29,3° | 1,51ms
B38: 52 | C38: 37.56009615 | D38: 2253 | E38: 73.97544015 | F38: 28.70472703 | G38: 1.575327191 | H38: 1575.327191 | I38: 1349 | J38: 29 | K38: 33 | M38: Led blink at startup | N38: yes | O38: =IF(N38="yes",1,0) -> 1 | P38: =EEPROM16!O21 -> :10E1100063006400640065006600660067006800D4 | R38: =EEPROM16!Q21 -> 63 64 64 65 66 66 67 68 | T38: =DEC2HEX(EEPROM16!H$6,2) -> 0E | Y38: 33 ;2253rpm | 28,7° | 1,58ms
B39: 53 | C39: 36.85141509 | D39: 2211 | E39: 75.3806724 | F39: 28.17243675 | G39: 1.645376394 | H39: 1645.376394 | I39: 1419 | J39: 30 | K39: 35 | P39: =EEPROM16!O22 -> :10E120006800690069006A006B006B006C006D009C | R39: =EEPROM16!Q22 -> 68 69 69 6A 6B 6B 6C 6D | T39: =DEC2HEX(EEPROM16!I$6,2) -> 10 | Y39: 35 ;2211rpm | 28,2° | 1,65ms
B40: 54 | C40: 36.16898148 | D40: 2170 | E40: 76.80491551 | F40: 27.65312916 | G40: 1.716349527 | H40: 1716.349527 | I40: 1490 | J40: 31 | K40: 37 | M40: First measure | N40: yes | O40: =IF(N40="yes",1,0) -> 1 | P40: =EEPROM16!O23 -> :10E130006D006E006F006F00700070007100720063 | R40: =EEPROM16!Q23 -> 6D 6E 6F 6F 70 70 71 72 | T40: =DEC2HEX(EEPROM16!J$6,2) -> 11 | Y40: 37 ;2170rpm | 27,7° | 1,72ms
B41: 55 | C41: 35.51136364 | D41: 2130 | E41: =((1000*1000*60)/($N$24*D41))/360 -> 78.24726135 | F41: 27.15978695 | G41: =(E41*($F$5-F41))/1000 -> 1.78718412 | H41: =E41*($F$5-F41) -> 1787.18412 | I41: 1561 | J41: 32 | K41: 39 | L41: =IF($I41/$K$5>255,CONCATENATE("WARNING: Timing will be more then ",F41,"°"),"") ->  | P41: =EEPROM16!O24 -> :10E1400000000000000000000000000000000000CF | R41: =EEPROM16!Q24 -> 00 00 00 00 00 00 00 00 | T41: =DEC2HEX(EEPROM16!K$6,2) -> 13 | Y41: =CONCATENATE(K41," ;",ROUND(D41,0),"rpm | ",ROUND(F41,1),"° | ",,ROUND(G41,2),"ms ") -> 39 ;2130rpm | 27,2° | 1,79ms
A42: =IF($B42>255,CONCATENATE("ERROR: Timer1H too large"),"") ->  | B42: =IF((B41+1)<(N$44+$B$9),B41+1,"- End -") -> 56 | C42: 34.87723214 | D42: 2092 | E42: 79.66857871 | F42: 26.67942743 | G42: 1.857916871 | H42: 1857.916871 | I42: 1631 | J42: 33 | K42: 40 | M42: Noise Filtering | N42: yes | O42: =IF(N42="yes",1,0) -> 1 | P42: =EEPROM16!O25 -> :10E1500000000000000000000000000000000000BF | R42: =EEPROM16!Q25 -> 00 00 00 00 00 00 00 00 | T42: =DEC2HEX(EEPROM16!L$6,2) -> 15 | Y42: 40 ;2092rpm | 26,7° | 1,86ms
B43: 57 | C43: 34.26535088 | D43: 2055 | E43: 81.10300081 | F43: 26.22503329 | G43: 1.928221144 | H43: 1928.221144 | I43: 1702 | J43: 34 | K43: 42 | P43: =EEPROM16!O26 -> :10E1600000000000000000000000000000000000AF | R43: =EEPROM16!Q26 -> 00 00 00 00 00 00 00 00 | T43: =DEC2HEX(EEPROM16!M$6,2) -> 17 | Y43: 42 ;2055rpm | 26,2° | 1,93ms
B44: 58 | C44: 33.67456897 | D44: 2020 | E44: 82.50825083 | F44: 25.78362184 | G44: 1.998051004 | H44: 1998.051004 | I44: 1772 | J44: 35 | K44: 44 | M44: Number of lines | N44: 160 | P44: =EEPROM16!O27 -> :10E17000000000000000000000000000000000009F | R44: =EEPROM16!Q27 -> 00 00 00 00 00 00 00 00 | T44: =DEC2HEX(EEPROM16!F7,2) -> 18 | Y44: 44 ;2020rpm | 25,8° | 2ms
B45: 59 | C45: 33.10381356 | D45: 1986 | E45: 83.92077878 | F45: 25.35519308 | G45: 2.06821139 | H45: 2068.21139 | I45: 1842 | J45: 36 | K45: 46 | M45: 5 h | P45: =EEPROM16!O28 -> :10E18000000000000000000000000000000000008F | R45: =EEPROM16!Q28 -> 00 00 00 00 00 00 00 00 | T45: =DEC2HEX(EEPROM16!G7,2) -> 1A | Y45: 46 ;1986rpm | 25,4° | 2,07ms
B46: 60 | C46: 32.55208333 | D46: 1953 | E46: 85.33879502 | F46: 24.939747 | G46: 2.138611793 | H46: 2138.611793 | I46: 1912 | J46: 37 | K46: 47 | P46: =EEPROM16!O29 -> :10E19000000000000000000000000000000000007F | R46: =EEPROM16!Q29 -> 00 00 00 00 00 00 00 00 | T46: =DEC2HEX(EEPROM16!H7,2) -> 1C | Y46: 47 ;1953rpm | 24,9° | 2,14ms
B47: 61 | C47: 32.01844262 | D47: 1921 | E47: 86.76036786 | F47: 24.53728362 | G47: 2.20915464 | H47: 2209.15464 | I47: 1983 | J47: 38 | K47: 49 | P47: =EEPROM16!O30 -> :10E1A000000000000000000000000000000000006F | R47: =EEPROM16!Q30 -> 00 00 00 00 00 00 00 00 | T47: =DEC2HEX(EEPROM16!I7,2) -> 1E | Y47: 49 ;1921rpm | 24,5° | 2,21ms
B48: 62 | C48: 31.50201613 | D48: 1890 | E48: 88.18342152 | F48: 24.14780293 | G48: 2.279735191 | H48: 2279.735191 | I48: 2053 | J48: 39 | K48: 51 | P48: =EEPROM16!O31 -> :10E1B000000000000000000000000000000000005F | R48: =EEPROM16!Q31 -> 00 00 00 00 00 00 00 00 | T48: =DEC2HEX(EEPROM16!J7,2) -> 1F | Y48: 51 ;1890rpm | 24,1° | 2,28ms
B49: 63 | C49: 31.00198413 | D49: 1860 | E49: 89.60573477 | F49: 23.77130493 | G49: 2.350241494 | H49: 2350.241494 | I49: 2124 | J49: 40 | K49: 53 | P49: =EEPROM16!O32 -> :10E1C000000000000000000000000000000000004F | R49: =EEPROM16!Q32 -> 00 00 00 00 00 00 00 00 | T49: =DEC2HEX(EEPROM16!K7,2) -> 21 | Y49: 53 ;1860rpm | 23,8° | 2,35ms
B50: 64 | C50: 30.51757812 | D50: 1831 | E50: 91.02494083 | F50: 23.39480692 | G50: 2.421736126 | H50: 2421.736126 | I50: 2195 | J50: 41 | K50: 54 | P50: =EEPROM16!O33 -> :10E1D0004F001900010000000000000000000000D6 | R50: =EEPROM16!Q33 -> 4F 19 01 00 00 00 00 00 | T50: =DEC2HEX(EEPROM16!L7,2) -> 23 | Y50: 54 ;1831rpm | 23,4° | 2,42ms
B51: 65 | C51: 30.04807692 | D51: 1802 | E51: 92.48982612 | F51: 23.0442743 | G51: 2.493130383 | H51: 2493.130383 | I51: 2267 | J51: 42 | K51: 56 | P51: =EEPROM16!O34 -> :10E1E000A000000032000100C80001000100000092 | R51: =EEPROM16!Q34 -> A0 00 32 01 C8 01 01 00 | T51: =DEC2HEX(EEPROM16!M7,2) -> 25 | Y51: 56 ;1802rpm | 23° | 2,49ms
B52: 66 | C52: 29.59280303 | D52: 1775 | E52: 93.89671362 | F52: 22.70672437 | G52: 2.562748886 | H52: 2562.748886 | I52: 2336 | J52: 43 | K52: 58 | P52: =EEPROM16!O35 -> :10E1F0001A00170004000800000028001700B600ED | R52: =EEPROM16!Q35 -> 1A 17 04 08 00 28 17 B6 | T52: =DEC2HEX(EEPROM16!F8,2) -> 27 | Y52: 58 ;1775rpm | 22,7° | 2,56ms
B53: 67 | C53: 29.1511194 | D53: 1749 | E53: 95.29254812 | F53: 22.36917443 | G53: 2.633011775 | H53: 2633.011775 | I53: 2407 | J53: 44 | K53: 60 | P53: =EEPROM16!O36 -> :00000001FF | T53: =DEC2HEX(EEPROM16!G8,2) -> 28 | Y53: 60 ;1749rpm | 22,4° | 2,63ms
B54: 68 | C54: 28.72242647 | D54: 1723 | E54: 96.7305088 | F54: 22.04460719 | G54: 2.70413937 | H54: 2704.13937 | I54: 2478 | J54: 45 | K54: 61 | T54: =DEC2HEX(EEPROM16!H8,2) -> 2A | Y54: 61 ;1723rpm | 22° | 2,7ms
B55: 69 | C55: 28.30615942 | D55: 1698 | E55: 98.15469179 | F55: 21.73302264 | G55: 2.774536451 | H55: 2774.536451 | I55: 2548 | J55: 46 | K55: 63 | T55: =DEC2HEX(EEPROM16!I8,2) -> 2C | Y55: 63 ;1698rpm | 21,7° | 2,77ms
B56: 70 | C56: 27.90178571 | D56: 1674 | E56: 99.56192752 | F56: 21.42143808 | G56: 2.84533671 | H56: 2845.33671 | I56: 2619 | J56: 47 | K56: 65 | T56: =DEC2HEX(EEPROM16!J8,2) -> 2E | Y56: 65 ;1674rpm | 21,4° | 2,85ms
B57: 71 | C57: 27.50880282 | D57: 1650 | E57: 101.010101 | F57: 21.12283622 | G57: 2.91688523 | H57: 2916.88523 | I57: 2690 | J57: 48 | K57: 67 | T57: =DEC2HEX(EEPROM16!K8,2) -> 2F | Y57: 67 ;1650rpm | 21,1° | 2,92ms
B58: 72 | C58: 27.12673611 | D58: 1627 | E58: 102.438025 | F58: 20.83721704 | G58: 2.987377889 | H58: 2987.377889 | I58: 2761 | J58: 49 | K58: 69 | T58: =DEC2HEX(EEPROM16!L8,2) -> 31 | Y58: 69 ;1627rpm | 20,8° | 2,99ms
B59: 73 | C59: 26.75513699 | D59: 1605 | E59: 103.8421599 | F59: 20.55159787 | G59: 3.057985683 | H59: 3057.985683 | I59: 2831 | J59: 50 | K59: 70 | S59: x | T59: =DEC2HEX(EEPROM16!M8,2) -> 33 | Y59: 70 ;1605rpm | 20,6° | 3,06ms
B60: 74 | C60: 26.39358108 | D60: 1583 | E60: 105.2853232 | F60: 20.27896138 | G60: 3.129189157 | H60: 3129.189157 | I60: 2903 | J60: 51 | K60: 72 | T60: =DEC2HEX(EEPROM16!F9,2) -> 35 | Y60: 72 ;1583rpm | 20,3° | 3,13ms
B61: 75 | C61: 26.04166667 | D61: 1562 | E61: 106.7008109 | F61: 20.0063249 | G61: 3.200349456 | H61: 3200.349456 | I61: 2974 | J61: 52 | K61: 74 | T61: =DEC2HEX(EEPROM16!G9,2) -> 36 | Y61: 74 ;1562rpm | 20° | 3,2ms
B62: 76 | C62: 25.69901316 | D62: 1541 | E62: 108.1548778 | F62: 19.74667111 | G62: 3.272045089 | H62: 3272.045089 | I62: 3046 | J62: 53 | K62: 76 | T62: =DEC2HEX(EEPROM16!H9,2) -> 38 | Y62: 76 ;1541rpm | 19,7° | 3,27ms
B63: 77 | C63: 25.36525974 | D63: 1521 | E63: 109.5770327 | F63: 19.5 | G63: 3.342099496 | H63: 3342.099496 | I63: 3116 | J63: 54 | K63: 77 | T63: =DEC2HEX(EEPROM16!I9,2) -> 3A | Y63: 77 ;1521rpm | 19,5° | 3,34ms
B64: 78 | C64: 25.0400641 | D64: 1502 | E64: 110.9631602 | F64: 19.25332889 | G64: 3.411747792 | H64: 3411.747792 | I64: 3185 | J64: 55 | K64: 79 | T64: =DEC2HEX(EEPROM16!J9,2) -> 3C | Y64: 79 ;1502rpm | 19,3° | 3,41ms
B65: 79 | C65: 24.72310127 | D65: 1483 | E65: 112.3848056 | F65: 19.00665779 | G65: 3.483180738 | H65: 3483.180738 | I65: 3257 | J65: 56 | K65: 81 | T65: =DEC2HEX(EEPROM16!K9,2) -> 3D | Y65: 81 ;1483rpm | 19° | 3,48ms
B66: 80 | C66: 24.4140625 | D66: 1464 | E66: 113.8433515 | F66: 18.77296937 | G66: 3.554989825 | H66: 3554.989825 | I66: 3328 | J66: 57 | K66: 83 | T66: =DEC2HEX(EEPROM16!L9,2) -> 3F | Y66: 83 ;1464rpm | 18,8° | 3,55ms
B67: 81 | C67: 24.11265432 | D67: 1446 | E67: 115.2604887 | F67: 18.55226365 | G67: 3.624681461 | H67: 3624.681461 | I67: 3398 | J67: 58 | K67: 84 | S67: x | T67: =DEC2HEX(EEPROM16!M9,2) -> 41 | Y67: 84 ;1446rpm | 18,6° | 3,62ms
B68: 82 | C68: 23.81859756 | D68: 1429 | E68: 116.6316772 | F68: 18.31857523 | G68: 3.695057706 | H68: 3695.057706 | I68: 3469 | J68: 59 | K68: 86 | T68: =DEC2HEX(EEPROM16!F10,2) -> 43 | Y68: 86 ;1429rpm | 18,3° | 3,7ms
B69: 83 | C69: 23.53162651 | D69: 1411 | E69: 118.119537 | F69: 18.1108522 | G69: 3.766731373 | H69: 3766.731373 | I69: 3540 | J69: 60 | K69: 88 | T69: =DEC2HEX(EEPROM16!G10,2) -> 45 | Y69: 88 ;1411rpm | 18,1° | 3,77ms
B70: 84 | C70: 23.2514881 | D70: 1395 | E70: 119.474313 | F70: 17.89014647 | G70: 3.836302692 | H70: 3836.302692 | I70: 3610 | J70: 61 | K70: 90 | T70: =DEC2HEX(EEPROM16!H10,2) -> 46 | Y70: 90 ;1395rpm | 17,9° | 3,84ms
B71: 85 | C71: 22.97794118 | D71: 1378 | E71: 120.9482342 | F71: 17.68242344 | G71: 3.908753818 | H71: 3908.753818 | I71: 3682 | J71: 62 | K71: 92 | T71: =DEC2HEX(EEPROM16!I10,2) -> 48 | Y71: 92 ;1378rpm | 17,7° | 3,91ms
B72: 86 | C72: 22.71075581 | D72: 1362 | E72: 122.3690651 | F72: 17.4747004 | G72: 3.980090504 | H72: 3980.090504 | I72: 3754 | J72: 63 | K72: 93 | T72: =DEC2HEX(EEPROM16!J10,2) -> 4A | Y72: 93 ;1362rpm | 17,5° | 3,98ms
B73: 87 | C73: 22.44971264 | D73: 1346 | E73: =((1000*1000*60)/($N$24*D73))/360 -> 123.8236751 | F73: 17.27996005 | G73: =(E73*($F$5-F73))/1000 -> 4.051515595 | H73: =E73*($F$5-F73) -> 4051.515595 | I73: 3825 | J73: 64 | K73: =IFERROR(IF($I73/$K$5>255,255,IF($I73>0.01,INT($I73/$K$5),1)),255) -> 95 | L73: =IF($I73/$K$5>255,CONCATENATE("WARNING: Timing will be more then ",F73,"°"),"") ->  | T73: =DEC2HEX(EEPROM16!K10,2) -> 4C | Y73: =CONCATENATE(K73," ;",ROUND(D73,0),"rpm | ",ROUND(F73,1),"° | ",,ROUND(G73,2),"ms ") -> 95 ;1346rpm | 17,3° | 4,05ms
A74: =IF($B74>255,CONCATENATE("ERROR: Timer1H too large"),"") ->  | B74: =IF((B73+1)<(N$44+$B$9),B73+1,"- End -") -> 88 | C74: =IFERROR(1000000/(B74*256*($N$30/$C$4)),"") -> 22.19460227 | D74: 1331 | E74: 125.2191335 | F74: 17.08521971 | G74: 4.121560267 | H74: 4121.560267 | I74: 3895 | J74: 65 | K74: 97 | T74: =DEC2HEX(EEPROM16!L10,2) -> 4D | Y74: 97 ;1331rpm | 17,1° | 4,12ms
B75: 89 | C75: 21.94522472 | D75: =INT(60*C75*$N$25/2*$N$24) -> 1316 | E75: 126.6464032 | F75: 16.90346205 | G75: 4.191557491 | H75: 4191.557491 | I75: =IF($H75>$I$4+$I$6,INT($H75-$I$4-$I$6),"out of range") -> 3965 | J75: 66 | K75: 99 | S75: x | T75: =DEC2HEX(EEPROM16!M10,2) -> 4F | Y75: 99 ;1316rpm | 16,9° | 4,19ms
B76: 90 | C76: 21.70138889 | D76: 1302 | E76: 128.0081925 | F76: 16.7087217 | G76: 4.261556361 | H76: 4261.556361 | I76: 4035 | J76: 67 | K76: 100 | T76: =DEC2HEX(EEPROM16!F11,2) -> 51 | Y76: 100 ;1302rpm | 16,7° | 4,26ms
B77: 91 | C77: 21.46291209 | D77: 1287 | E77: 129.5001295 | F77: 16.52696405 | G77: 4.334762491 | H77: 4334.762491 | I77: 4108 | J77: 68 | K77: 102 | T77: =DEC2HEX(EEPROM16!G11,2) -> 53 | Y77: 102 ;1287rpm | 16,5° | 4,33ms
B78: 92 | C78: 21.22961957 | D78: 1273 | E78: 130.9243257 | F78: 16.35818908 | G78: 4.404531411 | H78: 4404.531411 | I78: 4178 | J78: 69 | K78: 104 | T78: =DEC2HEX(EEPROM16!H11,2) -> 54 | Y78: 104 ;1273rpm | 16,4° | 4,4ms
B79: 93 | C79: 21.00134409 | D79: 1260 | E79: 132.2751323 | F79: 16.17643142 | G79: 4.474017007 | H79: 4474.017007 | I79: 4248 | J79: 70 | K79: 106 | T79: =DEC2HEX(EEPROM16!I11,2) -> 56 | Y79: 106 ;1260rpm | 16,2° | 4,47ms
B80: 94 | C80: 20.77792553 | D80: 1246 | E80: 133.7613697 | F80: 16.00765646 | G80: 4.546862432 | H80: 4546.862432 | I80: 4320 | J80: 71 | K80: 108 | T80: =DEC2HEX(EEPROM16!J11,2) -> 58 | Y80: 108 ;1246rpm | 16° | 4,55ms
B81: 95 | C81: 20.55921053 | D81: 1233 | E81: 135.171668 | F81: 15.83888149 | G81: 4.61761537 | H81: 4617.61537 | I81: 4391 | J81: 72 | K81: 109 | T81: =DEC2HEX(EEPROM16!K11,2) -> 5A | Y81: 109 ;1233rpm | 15,8° | 4,62ms
B82: 96 | C82: 20.34505208 | D82: 1220 | E82: 136.6120219 | F82: 15.68308921 | G82: 4.688102566 | H82: 4688.102566 | I82: 4462 | J82: 73 | K82: 111 | T82: =DEC2HEX(EEPROM16!L11,2) -> 5C | Y82: 111 ;1220rpm | 15,7° | 4,69ms
B83: 97 | C83: 20.13530928 | D83: 1208 | E83: 137.9690949 | F83: 15.2 | G83: 4.801324503 | H83: 4801.324503 | I83: 4575 | J83: 74 | K83: 114 | S83: x | T83: =DEC2HEX(EEPROM16!M11,2) -> 5D | Y83: 114 ;1208rpm | 15,2° | 4,8ms
B84: 98 | C84: 19.92984694 | D84: 1195 | E84: 139.4700139 | F84: 14.4 | G84: 4.965132497 | H84: 4965.132497 | I84: 4739 | J84: 75 | K84: 118 | T84: =DEC2HEX(EEPROM16!F12,2) -> 5F | Y84: 118 ;1195rpm | 14,4° | 4,97ms
B85: 99 | C85: 19.72853535 | D85: 1183 | E85: 140.8847563 | F85: 13.8 | G85: 5.100028177 | H85: 5100.028177 | I85: 4874 | J85: 76 | K85: 121 | T85: =DEC2HEX(EEPROM16!G12,2) -> 61 | Y85: 121 ;1183rpm | 13,8° | 5,1ms
B86: 100 | C86: 19.53125 | D86: 1171 | E86: 142.3284942 | F86: 13.4 | G86: 5.209222886 | H86: 5209.222886 | I86: 4983 | J86: 77 | K86: 124 | T86: =DEC2HEX(EEPROM16!H12,2) -> 63 | Y86: 124 ;1171rpm | 13,4° | 5,21ms
B87: 101 | C87: 19.33787129 | D87: 1160 | E87: 143.6781609 | F87: 13 | G87: 5.316091954 | H87: 5316.091954 | I87: 5090 | J87: 78 | K87: 127 | T87: =DEC2HEX(EEPROM16!I12,2) -> 64 | Y87: 127 ;1160rpm | 13° | 5,32ms
B88: 102 | C88: 19.14828431 | D88: 1148 | E88: 145.1800232 | F88: 12.8 | G88: 5.400696864 | H88: 5400.696864 | I88: 5174 | J88: 79 | K88: 129 | T88: =DEC2HEX(EEPROM16!J12,2) -> 66 | Y88: 129 ;1148rpm | 12,8° | 5,4ms
B89: 103 | C89: 18.96237864 | D89: 1137 | E89: 146.5845793 | F89: 12.5 | G89: 5.496921724 | H89: 5496.921724 | I89: 5270 | J89: 0 | K89: =IFERROR(IF($I89/100>255,255,IF($I89>0.01,INT($I89/100),1)),255) -> 52 | L89: =IF($I89/100>255,CONCATENATE("WARNING: Timing will be more then ",F89,"°"),"") ->  | T89: =DEC2HEX(EEPROM16!K12,2) -> 68 | Y89: 52 ;1137rpm | 12,5° | 5,5ms
B90: 104 | C90: 18.78004808 | D90: 1126 | E90: 148.0165779 | F90: 12.2 | G90: 5.595026643 | H90: 5595.026643 | I90: 5369 | J90: 1 | K90: =IFERROR(IF($I90/100>255,255,IF($I90>0.01,INT($I90/100),1)),255) -> 53 | L90: =IF($I90/100>255,CONCATENATE("WARNING: Timing will be more then ",F90,"°"),"") ->  | T90: =DEC2HEX(EEPROM16!L12,2) -> 6A | Y90: 53 ;1126rpm | 12,2° | 5,6ms
B91: 105 | C91: 18.60119048 | D91: 1116 | E91: 149.3428913 | F91: 11.8 | G91: 5.704898447 | H91: 5704.898447 | I91: 5478 | J91: 2 | K91: =IFERROR(IF($I91/100>255,255,IF($I91>0.01,INT($I91/100),1)),255) -> 54 | S91: x | T91: =DEC2HEX(EEPROM16!M12,2) -> 6C | Y91: 54 ;1116rpm | 11,8° | 5,7ms
B92: 106 | C92: 18.42570755 | D92: 1105 | E92: 150.8295626 | F92: 11.6 | G92: 5.791855204 | H92: 5791.855204 | I92: 5565 | J92: 3 | K92: 55 | T92: =DEC2HEX(EEPROM16!F13,2) -> 6D | Y92: 55 ;1105rpm | 11,6° | 5,79ms
B93: 107 | C93: 18.25350467 | D93: 1095 | E93: 152.2070015 | F93: 11.4 | G93: 5.875190259 | H93: 5875.190259 | I93: 5649 | J93: 4 | K93: 56 | T93: =DEC2HEX(EEPROM16!G13,2) -> 6F | Y93: 56 ;1095rpm | 11,4° | 5,88ms
B94: 108 | C94: 18.08449074 | D94: 1085 | E94: 153.609831 | F94: 11.2 | G94: 5.960061444 | H94: 5960.061444 | I94: 5734 | J94: 5 | K94: 57 | T94: =DEC2HEX(EEPROM16!H13,2) -> 72 | Y94: 57 ;1085rpm | 11,2° | 5,96ms
B95: 109 | C95: 17.91857798 | D95: 1075 | E95: 155.0387597 | F95: 10.9 | G95: 6.062015504 | H95: 6062.015504 | I95: 5836 | J95: 6 | K95: 58 | T95: =DEC2HEX(EEPROM16!I13,2) -> 76 | Y95: 58 ;1075rpm | 10,9° | 6,06ms
B96: 110 | C96: 17.75568182 | D96: 1065 | E96: 156.4945227 | F96: 10.6 | G96: 6.165884194 | H96: 6165.884194 | I96: 5939 | J96: 7 | K96: 59 | T96: =DEC2HEX(EEPROM16!J13,2) -> 79 | Y96: 59 ;1065rpm | 10,6° | 6,17ms
B97: 111 | C97: 17.59572072 | D97: 1055 | E97: 157.9778831 | F97: 10.3 | G97: 6.271721959 | H97: 6271.721959 | I97: 6045 | J97: 8 | K97: 60 | T97: =DEC2HEX(EEPROM16!K13,2) -> 7C | Y97: 60 ;1055rpm | 10,3° | 6,27ms
B98: 112 | C98: 17.43861607 | D98: 1046 | E98: 159.3371574 | F98: 10 | G98: 6.373486297 | H98: 6373.486297 | I98: 6147 | J98: 9 | K98: 61 | T98: =DEC2HEX(EEPROM16!L13,2) -> 7F | Y98: 61 ;1046rpm | 10° | 6,37ms
B99: 113 | C99: 17.28429204 | D99: 1037 | E99: 160.7200257 | F99: 9.8 | G99: 6.460945034 | H99: 6460.945034 | I99: 6234 | J99: 10 | K99: 62 | S99: x | T99: =DEC2HEX(EEPROM16!M13,2) -> 81 | Y99: 62 ;1037rpm | 9,8° | 6,46ms
B100: 114 | C100: 17.13267544 | D100: 1027 | E100: 162.2849724 | F100: 9.7 | G100: 6.540084388 | H100: 6540.084388 | I100: 6314 | J100: 11 | K100: 63 | T100: =DEC2HEX(EEPROM16!F14,2) -> 34 | Y100: 63 ;1027rpm | 9,7° | 6,54ms
B101: 115 | C101: 16.98369565 | D101: 1019 | E101: 163.5590448 | F101: 9.6 | G101: 6.607785411 | H101: 6607.785411 | I101: 6381 | J101: 12 | K101: 63 | T101: =DEC2HEX(EEPROM16!G14,2) -> 35 | Y101: 63 ;1019rpm | 9,6° | 6,61ms
B102: 116 | C102: 16.83728448 | D102: 1010 | E102: 165.0165017 | F102: 9.3 | G102: 6.716171617 | H102: 6716.171617 | I102: 6490 | J102: 13 | K102: 64 | T102: =DEC2HEX(EEPROM16!H14,2) -> 36 | Y102: 64 ;1010rpm | 9,3° | 6,72ms
B103: 117 | C103: 16.69337607 | D103: 1001 | E103: 166.5001665 | F103: 9 | G103: 6.826506827 | H103: 6826.506827 | I103: 6600 | J103: 14 | K103: 66 | T103: =DEC2HEX(EEPROM16!I14,2) -> 37 | Y103: 66 ;1001rpm | 9° | 6,83ms
B104: 118 | C104: 16.55190678 | D104: 993 | E104: 167.8415576 | F104: 5 | G104: =(E104*($F$5-F104))/1000 -> 7.552870091 | H104: =E104*($F$5-F104) -> 7552.870091 | I104: 7326 | J104: 15 | K104: 73 | T104: =DEC2HEX(EEPROM16!J14,2) -> 38 | Y104: 73 ;993rpm | 5° | 7,55ms
B105: 119 | C105: 16.41281513 | D105: 984 | E105: 169.3766938 | F105: 5 | G105: 7.62195122 | H105: 7621.95122 | I105: 7395 | J105: 16 | K105: 73 | T105: =DEC2HEX(EEPROM16!K14,2) -> 39
B106: =IF((B105+1)<(N$44+$B$9),B105+1,"- End -") -> 120 | C106: 16.27604167 | D106: 976 | E106: 170.7650273 | F106: 5 | G106: 7.68442623 | H106: 7684.42623 | I106: 7458 | J106: 17 | K106: 74 | T106: =DEC2HEX(EEPROM16!L14,2) -> 3A
B107: 121 | C107: 16.14152893 | D107: 968 | E107: 172.1763085 | F107: 5 | G107: 7.747933884 | H107: 7747.933884 | I107: 7521 | J107: 18 | K107: 75 | S107: x | T107: =DEC2HEX(EEPROM16!M14,2) -> 3B
B108: 122 | C108: 16.00922131 | D108: 960 | E108: 173.6111111 | F108: 5 | G108: 7.8125 | H108: 7812.5 | I108: 7586 | J108: 19 | K108: 75 | T108: =DEC2HEX(EEPROM16!F15,2) -> 3C
B109: 123 | C109: 15.87906504 | D109: 952 | E109: 175.070028 | F109: 5 | G109: 7.878151261 | H109: 7878.151261 | I109: 7652 | J109: 20 | K109: 76 | T109: =DEC2HEX(EEPROM16!G15,2) -> 3D
B110: 124 | C110: 15.75100806 | D110: 945 | E110: 176.366843 | F110: 5 | G110: 7.936507937 | H110: 7936.507937 | I110: 7710 | J110: 21 | K110: 77 | T110: =DEC2HEX(EEPROM16!H15,2) -> 3E
B111: 125 | C111: 15.625 | D111: 937 | E111: 177.8726432 | F111: 5 | G111: 8.004268943 | H111: 8004.268943 | I111: 7778 | J111: 22 | K111: 77 | T111: =DEC2HEX(EEPROM16!I15,2) -> 3F
B112: 126 | C112: 15.50099206 | D112: 930 | E112: 179.2114695 | F112: 5 | G112: 8.064516129 | H112: 8064.516129 | I112: 7838 | J112: 23 | K112: 78 | T112: =DEC2HEX(EEPROM16!J15,2) -> 3F
B113: 127 | C113: 15.37893701 | D113: 922 | E113: 180.7664497 | F113: 5 | G113: 8.134490239 | H113: 8134.490239 | I113: 7908 | J113: 24 | K113: 79 | T113: =DEC2HEX(EEPROM16!K15,2) -> 40
B114: 128 | C114: 15.25878906 | D114: 915 | E114: 182.1493625 | F114: 5 | G114: 8.196721311 | H114: 8196.721311 | I114: 7970 | J114: 25 | K114: 79 | T114: =DEC2HEX(EEPROM16!L15,2) -> 42
B115: 129 | C115: 15.14050388 | D115: 908 | E115: 183.5535977 | F115: 5 | G115: 8.259911894 | H115: 8259.911894 | I115: 8033 | J115: 26 | K115: 80 | S115: x | T115: =DEC2HEX(EEPROM16!M15,2) -> 49
B116: 130 | C116: 15.02403846 | D116: 901 | E116: 184.9796522 | F116: 5 | G116: 8.324084351 | H116: 8324.084351 | I116: 8098 | J116: 27 | K116: 80 | T116: =DEC2HEX(EEPROM16!F16,2) -> 49
B117: 131 | C117: 14.90935115 | D117: 894 | E117: 186.4280388 | F117: 5 | G117: 8.389261745 | H117: 8389.261745 | I117: 8163 | J117: 28 | K117: 81 | T117: =DEC2HEX(EEPROM16!G16,2) -> 4A
B118: 132 | C118: 14.79640152 | D118: 887 | E118: 187.899286 | F118: 5 | G118: 8.455467869 | H118: 8455.467869 | I118: 8229 | J118: 29 | K118: 82 | T118: =DEC2HEX(EEPROM16!H16,2) -> 4B
B119: 133 | C119: 14.68515038 | D119: 881 | E119: 189.1789633 | F119: 5 | G119: 8.513053348 | H119: 8513.053348 | I119: 8287 | J119: 30 | K119: 82 | T119: =DEC2HEX(EEPROM16!I16,2) -> 4B
B120: 134 | C120: 14.5755597 | D120: 874 | E120: 190.6941266 | F120: 5 | G120: 8.581235698 | H120: 8581.235698 | I120: 8355 | J120: 31 | K120: 83 | T120: =DEC2HEX(EEPROM16!J16,2) -> 4C
B121: 135 | C121: 14.46759259 | D121: 868 | E121: 192.0122888 | F121: 5 | G121: 8.640552995 | H121: 8640.552995 | I121: 8414 | J121: 32 | K121: 84 | T121: =DEC2HEX(EEPROM16!K16,2) -> 4D
B122: 136 | C122: 14.36121324 | D122: 861 | E122: 193.5733643 | F122: 5 | G122: 8.710801394 | H122: 8710.801394 | I122: 8484 | J122: 33 | K122: 84 | T122: =DEC2HEX(EEPROM16!L16,2) -> 4D
B123: 137 | C123: 14.25638686 | D123: 855 | E123: 194.9317739 | F123: 5 | G123: 8.771929825 | H123: 8771.929825 | I123: 8545 | J123: 34 | K123: 85 | S123: x | T123: =DEC2HEX(EEPROM16!M16,2) -> 4E
B124: 138 | C124: 14.15307971 | D124: 849 | E124: 196.3093836 | F124: 5 | G124: 8.833922261 | H124: 8833.922261 | I124: 8607 | J124: 35 | K124: 86 | T124: =DEC2HEX(EEPROM16!F17,2) -> 4F
B125: 139 | C125: 14.05125899 | D125: 843 | E125: 197.7066034 | F125: 5 | G125: 8.896797153 | H125: 8896.797153 | I125: 8670 | J125: 36 | K125: 86 | T125: =DEC2HEX(EEPROM16!G17,2) -> 4F
B126: 140 | C126: 13.95089286 | D126: 837 | E126: 199.123855 | F126: 5 | G126: 8.960573477 | H126: 8960.573477 | I126: 8734 | J126: 37 | K126: 87 | T126: =DEC2HEX(EEPROM16!H17,2) -> 50
B127: 141 | C127: 13.85195035 | D127: 831 | E127: 200.5615724 | F127: 5 | G127: 9.025270758 | H127: 9025.270758 | I127: 8799 | J127: 38 | K127: 87 | T127: =DEC2HEX(EEPROM16!I17,2) -> 50
B128: 142 | C128: 13.75440141 | D128: 825 | E128: 202.020202 | F128: 5 | G128: =(E128*($F$5-F128))/1000 -> 9.090909091 | H128: =E128*($F$5-F128) -> 9090.909091 | I128: 8864 | J128: 39 | K128: 88 | T128: =DEC2HEX(EEPROM16!J17,2) -> 51
B129: 143 | C129: 13.65821678 | D129: 819 | E129: 203.5002035 | F129: 5 | G129: 9.157509158 | H129: 9157.509158 | I129: 8931 | J129: 40 | K129: 89 | T129: =DEC2HEX(EEPROM16!K17,2) -> 52
B130: 144 | C130: 13.56336806 | D130: 813 | E130: 205.00205 | F130: 5 | G130: 9.225092251 | H130: 9225.092251 | I130: 8999 | J130: 41 | K130: 89 | T130: =DEC2HEX(EEPROM16!L17,2) -> 52
B131: 145 | C131: 13.46982759 | D131: 808 | E131: 206.2706271 | F131: 5 | G131: 9.282178218 | H131: 9282.178218 | I131: 9056 | J131: 42 | K131: 90 | S131: x | T131: =DEC2HEX(EEPROM16!M17,2) -> 53
B132: 146 | C132: 13.37756849 | D132: 802 | E132: 207.8137988 | F132: 5 | G132: 9.351620948 | H132: 9351.620948 | I132: 9125 | J132: 43 | K132: 91 | T132: =DEC2HEX(EEPROM16!F18,2) -> 54
B133: 147 | C133: 13.28656463 | D133: 797 | E133: 209.117524 | F133: 5 | G133: 9.410288582 | H133: 9410.288582 | I133: 9184 | J133: 44 | K133: 91 | T133: =DEC2HEX(EEPROM16!G18,2) -> 54
B134: 148 | C134: 13.19679054 | D134: 791 | E134: 210.7037505 | F134: 5 | G134: 9.481668774 | H134: 9481.668774 | I134: 9255 | J134: 45 | K134: 92 | T134: =DEC2HEX(EEPROM16!H18,2) -> 55
B135: 149 | C135: 13.10822148 | D135: 786 | E135: 212.0441052 | F135: 5 | G135: 9.541984733 | H135: 9541.984733 | I135: 9315 | J135: 46 | K135: 93 | T135: =DEC2HEX(EEPROM16!I18,2) -> 56
B136: 150 | C136: 13.02083333 | D136: 781 | E136: 213.4016219 | F136: 5 | G136: 9.603072983 | H136: 9603.072983 | I136: 9377 | J136: 47 | K136: 93 | T136: =DEC2HEX(EEPROM16!J18,2) -> 56
B137: 151 | C137: 12.93460265 | D137: 776 | E137: =((1000*1000*60)/($N$24*D137))/360 -> 214.7766323 | F137: 5 | G137: 9.664948454 | H137: 9664.948454 | I137: 9438 | J137: 48 | K137: 94 | T137: =DEC2HEX(EEPROM16!K18,2) -> 57
A138: =IF($B138>255,CONCATENATE("ERROR: Timer1H too large"),"") ->  | B138: =IF((B137+1)<(N$44+$B$9),B137+1,"- End -") -> 152 | C138: =IFERROR(1000000/(B138*256*($N$30/$C$4)),"") -> 12.84950658 | D138: 770 | E138: 216.4502165 | F138: 5 | G138: 9.74025974 | H138: 9740.25974 | I138: 9514 | J138: 49 | K138: 95 | T138: =DEC2HEX(EEPROM16!L18,2) -> 57
B139: 153 | C139: 12.76552288 | D139: =INT(60*C139*$N$25/2*$N$24) -> 765 | E139: 217.8649237 | F139: 5 | G139: 9.803921569 | H139: 9803.921569 | I139: =IF($H139>$I$4+$I$6,INT($H139-$I$4-$I$6),"out of range") -> 9577 | J139: 50 | K139: 95 | S139: x | T139: =DEC2HEX(EEPROM16!M18,2) -> 58
B140: 154 | C140: 12.68262987 | D140: 760 | E140: 219.2982456 | F140: 5 | G140: 9.868421053 | H140: 9868.421053 | I140: 9642 | J140: 51 | K140: 96 | T140: =DEC2HEX(EEPROM16!F19,2) -> 59
B141: 155 | C141: 12.60080645 | D141: 756 | E141: 220.4585538 | F141: 5 | G141: 9.920634921 | H141: 9920.634921 | I141: 9694 | J141: 52 | K141: 96 | T141: =DEC2HEX(EEPROM16!G19,2) -> 59
B142: 156 | C142: 12.52003205 | D142: 751 | E142: 221.9263205 | F142: 5 | G142: 9.986684421 | H142: 9986.684421 | I142: 9760 | J142: 53 | K142: 97 | T142: =DEC2HEX(EEPROM16!H19,2) -> 5A
B143: 157 | C143: 12.44028662 | D143: 746 | E143: 223.4137623 | F143: 5 | G143: 10.0536193 | H143: 10053.6193 | I143: 9827 | J143: 54 | K143: 98 | T143: =DEC2HEX(EEPROM16!I19,2) -> 5B
B144: 158 | C144: 12.36155063 | D144: 741 | E144: 224.9212776 | F144: 5 | G144: 10.12145749 | H144: 10121.45749 | I144: 9895 | J144: 55 | K144: 98 | T144: =DEC2HEX(EEPROM16!J19,2) -> 5B
B145: 159 | C145: 12.28380503 | D145: 737 | E145: 226.1420172 | F145: 5 | G145: 10.17639077 | H145: 10176.39077 | I145: 9950 | J145: 56 | K145: 99 | T145: =DEC2HEX(EEPROM16!K19,2) -> 5C
B146: 160 | C146: 12.20703125 | D146: 732 | E146: 227.6867031 | F146: 5 | G146: 10.24590164 | H146: 10245.90164 | I146: 10019 | J146: 57 | K146: 100 | T146: =DEC2HEX(EEPROM16!L19,2) -> 5D
B147: 161 | C147: 12.13121118 | D147: 727 | E147: 229.2526364 | F147: 5 | G147: 10.31636864 | H147: 10316.36864 | I147: 10090 | J147: 58 | K147: 100 | S147: x | T147: =DEC2HEX(EEPROM16!M19,2) -> 5D
B148: 162 | C148: 12.05632716 | D148: 723 | E148: 230.5209774 | F148: 5 | G148: 10.37344398 | H148: 10373.44398 | I148: 10147 | J148: 59 | K148: 101 | T148: =DEC2HEX(EEPROM16!F20,2) -> 5E
B149: 163 | C149: 11.98236196 | D149: 718 | E149: 232.1262767 | F149: 5 | G149: 10.44568245 | H149: 10445.68245 | I149: 10219 | J149: 60 | K149: 102 | T149: =DEC2HEX(EEPROM16!G20,2) -> 5F
B150: 164 | C150: 11.90929878 | D150: 714 | E150: 233.426704 | F150: 5 | G150: 10.50420168 | H150: 10504.20168 | I150: 10278 | J150: 61 | K150: 102 | T150: =DEC2HEX(EEPROM16!H20,2) -> 5F
B151: 165 | C151: 11.83712121 | D151: 710 | E151: 234.741784 | F151: 5 | G151: 10.56338028 | H151: 10563.38028 | I151: 10337 | J151: 62 | K151: 103 | T151: =DEC2HEX(EEPROM16!I20,2) -> 60
B152: 166 | C152: 11.76581325 | D152: 705 | E152: 236.4066194 | F152: 5 | G152: 10.63829787 | H152: 10638.29787 | I152: 10412 | J152: 63 | K152: 104 | T152: =DEC2HEX(EEPROM16!J20,2) -> 60
B153: 167 | C153: 11.69535928 | D153: 701 | E153: 237.7555873 | F153: 5 | G153: =(E153*($F$5-F153))/1000 -> 10.69900143 | H153: =E153*($F$5-F153) -> 10699.00143 | I153: 10473 | J153: 64 | K153: 104 | T153: =DEC2HEX(EEPROM16!K20,2) -> 61
B154: 168 | C154: 11.62574405 | D154: 697 | E154: 239.1200383 | F154: 5 | G154: 10.76040172 | H154: 10760.40172 | I154: 10534 | J154: 65 | K154: 105 | L154: =IF($I154/100>255,CONCATENATE("WARNING: Timing will be more then ",F154,"°"),"") ->  | T154: =DEC2HEX(EEPROM16!L20,2) -> 62
B155: 169 | C155: 11.55695266 | D155: 693 | E155: 240.5002405 | F155: 5 | G155: 10.82251082 | H155: 10822.51082 | I155: 10596 | J155: 66 | K155: =IFERROR(IF($I155/100>255,255,IF($I155>0.01,INT($I155/100),1)),255) -> 105 | S155: x | T155: =DEC2HEX(EEPROM16!M20,2) -> 62
B156: 170 | C156: 11.48897059 | D156: 689 | E156: 241.8964683 | F156: 5 | G156: 10.88534107 | H156: 10885.34107 | I156: 10659 | J156: 67 | K156: 106 | T156: =DEC2HEX(EEPROM16!F21,2) -> 63
B157: 171 | C157: 11.42178363 | D157: 685 | E157: 243.3090024 | F157: 5 | G157: 10.94890511 | H157: 10948.90511 | I157: 10722 | J157: 68 | K157: 107 | T157: =DEC2HEX(EEPROM16!G21,2) -> 64
B158: 172 | C158: 11.35537791 | D158: 681 | E158: 244.7381302 | F158: 5 | G158: 11.01321586 | H158: 11013.21586 | I158: 10787 | J158: 69 | K158: 107 | T158: =DEC2HEX(EEPROM16!H21,2) -> 64
B159: 173 | C159: 11.28973988 | D159: 677 | E159: 246.1841457 | F159: 5 | G159: 11.07828656 | H159: 11078.28656 | I159: 10852 | J159: 70 | K159: 108 | T159: =DEC2HEX(EEPROM16!I21,2) -> 65
B160: 174 | C160: 11.22485632 | D160: 673 | E160: 247.6473502 | F160: 5 | G160: 11.14413076 | H160: 11144.13076 | I160: 10918 | J160: 71 | K160: 109 | T160: =DEC2HEX(EEPROM16!J21,2) -> 66
B161: 175 | C161: 11.16071429 | D161: 669 | E161: 249.1280518 | F161: 5 | G161: 11.21076233 | H161: 11210.76233 | I161: 10984 | J161: 72 | K161: 109 | T161: =DEC2HEX(EEPROM16!K21,2) -> 66
B162: 176 | C162: 11.09730114 | D162: 665 | E162: 250.6265664 | F162: 5 | G162: 11.27819549 | H162: 11278.19549 | I162: 11052 | J162: 73 | K162: 110 | T162: =DEC2HEX(EEPROM16!L21,2) -> 67
B163: 177 | C163: 11.03460452 | D163: 662 | E163: 251.7623364 | F163: 5 | G163: 11.32930514 | H163: 11329.30514 | I163: 11103 | J163: 74 | K163: 111 | S163: x | T163: =DEC2HEX(EEPROM16!M21,2) -> 68
B164: 178 | C164: 10.97261236 | D164: 658 | E164: 253.2928065 | F164: 5 | G164: 11.39817629 | H164: 11398.17629 | I164: 11172 | J164: 75 | K164: 111 | T164: =DEC2HEX(EEPROM16!F22,2) -> 68
B165: 179 | C165: 10.91131285 | D165: 654 | E165: 254.841998 | F165: 5 | G165: 11.46788991 | H165: 11467.88991 | I165: 11241 | J165: 76 | K165: 112 | T165: =DEC2HEX(EEPROM16!G22,2) -> 69
B166: 180 | C166: 10.85069444 | D166: 651 | E166: 256.016385 | F166: 5 | G166: 11.52073733 | H166: 11520.73733 | I166: 11294 | J166: 77 | K166: 112 | T166: =DEC2HEX(EEPROM16!H22,2) -> 69
B167: 181 | C167: 10.79074586 | D167: 647 | E167: 257.5991757 | F167: 5 | G167: 11.59196291 | H167: 11591.96291 | I167: 11365 | J167: 78 | K167: 113 | T167: =DEC2HEX(EEPROM16!I22,2) -> 6A
B168: 182 | C168: 10.73145604 | D168: 643 | E168: 259.2016589 | F168: 5 | G168: 11.66407465 | H168: 11664.07465 | I168: 11438 | J168: 79 | K168: 114 | T168: =DEC2HEX(EEPROM16!J22,2) -> 6B
A169: ERROR: Timer1H too large | B169: - End - | C169: =IFERROR(1000000/(B169*256*($N$30/$C$4)),"") ->  | F169: 5 | J169: 80 | K169: 255 | T169: =DEC2HEX(EEPROM16!K22,2) -> 6B
T170: =DEC2HEX(EEPROM16!L22,2) -> 6C
S171: x | T171: =DEC2HEX(EEPROM16!M22,2) -> 6D
T172: =DEC2HEX(EEPROM16!F23,2) -> 6D
T173: =DEC2HEX(EEPROM16!G23,2) -> 6E
T174: =DEC2HEX(EEPROM16!H23,2) -> 6F
B175: =IFERROR(B9,"") -> 23 | C175: 84.91847826 | D175: 5095 | T175: =DEC2HEX(EEPROM16!I23,2) -> 6F
B176: 24 | C176: 81.38020833 | D176: 4882 | T176: =DEC2HEX(EEPROM16!J23,2) -> 70
B177: 25 | C177: 78.125 | D177: 4687 | T177: =DEC2HEX(EEPROM16!K23,2) -> 70
B178: 26 | C178: 75.12019231 | D178: 4507 | T178: =DEC2HEX(EEPROM16!L23,2) -> 71
B179: 27 | C179: 72.33796296 | D179: 4340 | S179: x | T179: =DEC2HEX(EEPROM16!M23,2) -> 72
B180: 28 | C180: 69.75446429 | D180: 4185 | T180: =DEC2HEX(EEPROM16!F24,2) -> 00
B181: 29 | C181: 67.34913793 | D181: 4040 | T181: =DEC2HEX(EEPROM16!G24,2) -> 00
B182: 30 | C182: 65.10416667 | D182: 3906 | T182: =DEC2HEX(EEPROM16!H24,2) -> 00
B183: 31 | C183: 63.00403226 | D183: 3780 | T183: =DEC2HEX(EEPROM16!I24,2) -> 00
B184: 32 | C184: 61.03515625 | D184: 3662 | T184: =DEC2HEX(EEPROM16!J24,2) -> 00
B185: 33 | C185: 59.18560606 | D185: 3551 | T185: =DEC2HEX(EEPROM16!K24,2) -> 00
B186: 34 | C186: 57.44485294 | D186: 3446 | T186: =DEC2HEX(EEPROM16!L24,2) -> 00
B187: 35 | C187: 55.80357143 | D187: 3348 | S187: x | T187: =DEC2HEX(EEPROM16!M24,2) -> 00
B188: 36 | C188: 54.25347222 | D188: 3255 | T188: =DEC2HEX(EEPROM16!F25,2) -> 00
B189: 37 | C189: 52.78716216 | D189: 3167 | T189: =DEC2HEX(EEPROM16!G25,2) -> 00
B190: 38 | C190: 51.39802632 | D190: 3083 | T190: =DEC2HEX(EEPROM16!H25,2) -> 00
B191: 39 | C191: 50.08012821 | D191: 3004 | T191: =DEC2HEX(EEPROM16!I25,2) -> 00
B192: 40 | C192: 48.828125 | D192: 2929 | T192: =DEC2HEX(EEPROM16!J25,2) -> 00
B193: 41 | C193: 47.63719512 | D193: 2858 | T193: =DEC2HEX(EEPROM16!K25,2) -> 00
B194: 42 | C194: 46.50297619 | D194: 2790 | T194: =DEC2HEX(EEPROM16!L25,2) -> 00
B195: =IFERROR(B29,"") -> 43 | C195: 45.42151163 | D195: 2725 | S195: x | T195: =DEC2HEX(EEPROM16!M25,2) -> 00
B196: 44 | C196: 44.38920455 | D196: 2663 | T196: =DEC2HEX(EEPROM16!F26,2) -> 00
B197: 45 | C197: 43.40277778 | D197: 2604 | T197: =DEC2HEX(EEPROM16!G26,2) -> 00
B198: 46 | C198: 42.45923913 | D198: 2547 | T198: =DEC2HEX(EEPROM16!H26,2) -> 00
B199: 47 | C199: 41.55585106 | D199: 2493 | T199: =DEC2HEX(EEPROM16!I26,2) -> 00
B200: 48 | C200: 40.69010417 | D200: 2441 | T200: =DEC2HEX(EEPROM16!J26,2) -> 00
... 135 more rows

Sheet LowRPM
B2: Advance at low RPM | D2: =CONCATENATE("from ",L7," to") -> from 76 to | E2: =CONCATENATE(ROUNDDOWN(Advance_curve!C7,0)," RPM") -> 643 RPM | H2: VLRPM | I2: 26 | J2: us
D4: Cylinder(s) = | E4: =Advance_curve!N24 -> 1 | H4: Fosc/4 | I4: =Advance_curve!C4 -> 4 | J4: MHz | K4: TMR1deb max | L4: =48/I5 -> 6
D5: Strokes = | E5: =Advance_curve!N25 -> 2 | F5: STK | H5: Prescaler | I5: =Advance_curve!N30 -> 8 | K5: durée debords max | L5: =L4*I7 -> 780.3 | M5: ms
D6: Pkp position = | E6: =Advance_curve!$F$5 -> 50 | F6: ° BTDC | H6: periode TMR1L | I6: =I5/I4 -> 2 | J6: ms | K6: Frq mini | L6: =1000/L5 -> 1.281558375 | M6: Hz | N6: Frq | P6: periode | Q6: periode | R6: 1° | S6: Timer1 | T6: TMR1h | U6: TMR1deb | V6: TMR1rest | W6: Delay | X6: Delay needed | Y6: Delay | Z6: advance
D7: RPM limit = | E7: =IF(Advance_curve!N30=1,"336",IF(Advance_curve!N30=2,"168",IF(Advance_curve!N30=4,"84",IF(Advance_curve!N30=8,"42","False")))) -> 42 | F7: RPM | H7: débord TMR1H | I7: =255*255*I6/1000 -> 130.05 | J7: ms | K7: RPM mini | L7: =INT(60*L6*E5/2*E4) -> 76 | M7: RPM | N7: Hz | O7: RPM | P7: µs | Q7: ms | R7: us | W7: µs | X7: µs | Y7: degres | Z7: degres BTDC
N8: 1 | O8: =IF(N8="End"," ",(N8*60*$E$5)/(2*$E$4)) -> 60 | P8: =1000000/N8 -> 1000000 | Q8: =P8/1000 -> 1000 | R8: =((1000*1000*60)/($E$4*O8))/360 -> 2777.777778 | S8: =IF(N8="End"," ",INT(P8*Advance_curve!$C$4)/$I$5) -> 500000 | T8: =IF(N8="End"," ",S8/255) -> 1960.784314 | U8: =INT(T8/255) -> 7 | V8: =T8-U8*255 -> 175.7843137 | W8: =IF(U8<6,(U8*255*$I$2)+(V8*($I$2+0)),$I$2*(5*255+V8)) -> 37720.39216 | X8: =W8 -> 37720.39216 | Y8: =X8/R8 -> 13.57934118 | Z8: =$E$6-Y8 -> 36.42065882
H9: temps calcul | I9: 22 | J9: µs | N9: 1.5 | O9: =IF(N9="End"," ",(N9*60*$E$5)/(2*$E$4)) -> 90 | P9: =1000000/N9 -> 666666.6667 | Q9: =P9/1000 -> 666.6666667 | R9: =((1000*1000*60)/($E$4*O9))/360 -> 1851.851852 | S9: =IF(N9="End"," ",INT(P9*Advance_curve!$C$4)/$I$5) -> 333333.25 | T9: =IF(N9="End"," ",S9/255) -> 1307.189216 | U9: =INT(T9/255) -> 5 | V9: =T9-U9*255 -> 32.18921569 | W9: 33986.91961 | X9: =W9 -> 33986.91961 | Y9: =X9/R9 -> 18.35293659 | Z9: =$E$6-Y9 -> 31.64706341
H10: hysteresis | I10: =Advance_curve!I6 -> 200 | J10: µs | N10: =IF(N8<Advance_curve!C$6,N8+1,"End") -> 2 | O10: 120 | P10: 500000 | Q10: 500 | R10: =((1000*1000*60)/($E$4*O10))/360 -> 1388.888889 | S10: =IF(N10="End"," ",INT(P10*Advance_curve!$C$4)/$I$5) -> 250000 | T10: 980.3921569 | U10: =INT(T10/255) -> 3 | V10: =T10-U10*255 -> 215.3921569 | W10: 25490.19608 | X10: 25490.19608 | Y10: =X10/R10 -> 18.35294118 | Z10: =$E$6-Y10 -> 31.64705882
N11: =IF(N10<Advance_curve!$C$6,N10+1,"End") -> 3 | O11: 180 | P11: 333333.3333 | Q11: 333.3333333 | R11: 925.9259259 | S11: =IF(N11="End"," ",INT(P11*Advance_curve!$C$4)/$I$5) -> 166666.625 | T11: 653.5946078 | U11: 2 | V11: 143.5946078 | W11: 16993.4598 | X11: 16993.4598 | Y11: =X11/R11 -> 18.35293659 | Z11: =IF($U11<5,$E$6-Y11,"0") -> 31.64706341
N12: =IF(N11<Advance_curve!$C$6,N11+1,"End") -> 4 | O12: 240 | P12: 250000 | Q12: 250 | R12: 694.4444444 | S12: =IF(N12="End"," ",INT(P12*Advance_curve!$C$4)/$I$5) -> 125000 | T12: 490.1960784 | U12: 1 | V12: 235.1960784 | W12: 12745.09804 | X12: 12745.09804 | Y12: 18.35294118 | Z12: 31.64705882
N13: =IF(N12<Advance_curve!$C$6,N12+1,"End") -> 5 | O13: 300 | P13: 200000 | Q13: 200 | R13: 555.5555556 | S13: =IF(N13="End"," ",INT(P13*Advance_curve!$C$4)/$I$5) -> 100000 | T13: 392.1568627 | U13: 1 | V13: 137.1568627 | W13: 10196.07843 | X13: 10196.07843 | Y13: 18.35294118 | Z13: 31.64705882
N14: =IF(N13<Advance_curve!$C$6,N13+1,"End") -> 6 | O14: 360 | P14: 166666.6667 | Q14: 166.6666667 | R14: 462.962963 | S14: =IF(N14="End"," ",INT(P14*Advance_curve!$C$4)/$I$5) -> 83333.25 | T14: 326.7970588 | U14: 1 | V14: 71.79705882 | W14: 8496.723529 | X14: 8496.723529 | Y14: 18.35292282 | Z14: 31.64707718
N15: =IF(N14<Advance_curve!$C$6,N14+1,"End") -> 7 | O15: 420 | P15: 142857.1429 | Q15: 142.8571429 | R15: 396.8253968 | S15: =IF(N15="End"," ",INT(P15*Advance_curve!$C$4)/$I$5) -> 71428.5 | T15: 280.1117647 | U15: 1 | V15: 25.11176471 | W15: 7282.905882 | X15: 7282.905882 | Y15: 18.35292282 | Z15: 31.64707718
N16: =IF(N15<Advance_curve!$C$6,N15+1,"End") -> 8 | O16: 480 | P16: 125000 | Q16: 125 | R16: 347.2222222 | S16: =IF(N16="End"," ",INT(P16*Advance_curve!$C$4)/$I$5) -> 62500 | T16: 245.0980392 | U16: 0 | V16: 245.0980392 | W16: 6372.54902 | X16: 6372.54902 | Y16: 18.35294118 | Z16: 31.64705882
N17: =IF(N16<Advance_curve!$C$6,N16+1,"End") -> 9 | O17: 540 | P17: 111111.1111 | Q17: 111.1111111 | R17: 308.6419753 | S17: =IF(N17="End"," ",INT(P17*Advance_curve!$C$4)/$I$5) -> 55555.5 | T17: 217.8647059 | U17: 0 | V17: 217.8647059 | W17: 5664.482353 | X17: 5664.482353 | Y17: 18.35292282 | Z17: 31.64707718
N18: =IF(N17<Advance_curve!$C$6,N17+1,"End") -> 10 | O18: 600 | P18: 100000 | Q18: 100 | R18: 277.7777778 | S18: =IF(N18="End"," ",INT(P18*Advance_curve!$C$4)/$I$5) -> 50000 | T18: 196.0784314 | U18: 0 | V18: 196.0784314 | W18: 5098.039216 | X18: 5098.039216 | Y18: 18.35294118 | Z18: 31.64705882
N19: =IF(N18<Advance_curve!$C$6,N18+1,"End") -> 11 | O19: 660 | P19: 90909.09091 | Q19: 90.90909091 | R19: 252.5252525 | S19: =IF(N19="End"," ",INT(P19*Advance_curve!$C$4)/$I$5) -> 45454.5 | T19: 178.2529412 | U19: 0 | V19: 178.2529412 | W19: 4634.576471 | X19: 4634.576471 | Y19: 18.35292282 | Z19: 31.64707718
N20: =IF(N19<Advance_curve!$C$6,N19+1,"End") -> End | S20: =IF(N20="End"," ",INT(P20*Advance_curve!$C$4)/$I$5) ->  | U20: =INT(T20/255) ->  | V20: =T20-U20*255 ->  | Z20: =IF($T20<255,Advance_curve!$F$5-Y20,"0") -> 0
N21: =IF(N20<Advance_curve!$C$6,N20+1,"End") -> End | S21: =IF(N21="End"," ",INT(P21*Advance_curve!$C$4)/$I$5) ->  | Z21: =IF($T21<255,Advance_curve!$F$5-Y21,"0") -> 0
N22: =IF(N21<Advance_curve!$C$6,N21+1,"End") -> End | S22: =IF(N22="End"," ",INT(P22*Advance_curve!$C$4)/$I$5) ->  | Z22: =IF($T22<255,Advance_curve!$F$5-Y22,"0") -> 0
N23: =IF(N22<Advance_curve!$C$6,N22+1,"End") -> End | S23: =IF(N23="End"," ",INT(P23*Advance_curve!$C$4)/$I$5) ->  | Z23: =IF($T23<255,Advance_curve!$F$5-Y23,"0") -> 0
N24: =IF(N23<Advance_curve!$C$6,N23+1,"End") -> End | S24: =IF(N24="End"," ",INT(P24*Advance_curve!$C$4)/$I$5) ->  | Z24: =IF($T24<255,Advance_curve!$F$5-Y24,"0") -> 0
N25: =IF(N24<Advance_curve!$C$6,N24+1,"End") -> End | S25: =IF(N25="End"," ",INT(P25*Advance_curve!$C$4)/$I$5) ->  | Z25: =IF($T25<255,Advance_curve!$F$5-Y25,"0") -> 0
N26: =IF(N25<Advance_curve!$C$6,N25+1,"End") -> End | S26: =IF(N26="End"," ",INT(P26*Advance_curve!$C$4)/$I$5) ->  | T26: =IF(N26="End"," ",S26/255) ->  | Z26: =IF($T26<255,Advance_curve!$F$5-Y26,"0") -> 0
H30: Délai proportionnel aux nbr de débords.
H32: Avec Clock 16MHz:
H33: PRESC=1 => TMR1H s'incrémente de 1 en 64us et déborde en 16ms
H34: PRESC=2 => TMR1H s'incrémente de 1 en 128us et déborde en 32ms <===
H35: PRESC=4 => TMR1H s'incrémente de 1 en 256us et déborde en 65ms
H36: PRESC=8 => TMR1H s'incrémente de 1 en 512us et déborde en 131ms

Sheet EEPROM16
O1: INTEL 16HEX format | Q1: RAW format
O2: :020000040000FA | X2: Hash
A3: Bytes in Row | B3: Address MSB (hex) | C3: Address LSB (hex) | D3: Address Start (MSB) | E3: Address Start (LSB) | F3: +0 | G3: +1 | H3: +2 | I3: +3 | J3: +4 | K3: +5 | L3: +6 | M3: +7 | O3: :020000040001F9 | S3: sum[dec] | T3: sum[hex] | U3: LSB | V3: two's complement [dec] | W3: two's complement +1 | X3: cksum
A4: 16 | B4: E0 | C4: =DEC2HEX(E4,2) -> 00 | D4: 224 | E4: 0 | F4: =ROUND(Advance_curve!$K9,0) -> 3 | G4: =ROUND(Advance_curve!$K10,0) -> 3 | H4: =ROUND(Advance_curve!$K11,0) -> 4 | I4: =ROUND(Advance_curve!$K12,0) -> 4 | J4: =ROUND(Advance_curve!$K13,0) -> 4 | K4: =ROUND(Advance_curve!$K14,0) -> 5 | L4: =ROUND(Advance_curve!$K15,0) -> 5 | M4: =ROUND(Advance_curve!$K16,0) -> 6 | O4: =":"&DEC2HEX(A4,2)&B4&C4&"00"&DEC2HEX(F4,2)&"00"&DEC2HEX(G4,2)&"00"&DEC2HEX(H4,2)&"00"&DEC2HEX(I4,2)&"00"&DEC2HEX(J4,2)&"00"&DEC2HEX(K4,2)&"00"&DEC2HEX(L4,2)&"00"&DEC2HEX(M4,2)&"00"&X4 -> :10E0000003000300040004000400050005000600EE | Q4: =DEC2HEX(F4,2)&" "&DEC2HEX(G4,2)&" "&DEC2HEX(H4,2)&" "&DEC2HEX(I4,2)&" "&DEC2HEX(J4,2)&" "&DEC2HEX(K4,2)&" "&DEC2HEX(L4,2)&" "&DEC2HEX(M4,2) -> 03 03 04 04 04 05 05 06 | S4: =SUM(A4,D4:M4) -> 274 | T4: =DEC2HEX(S4) -> 112 | U4: =RIGHT(T4,2) -> 12 | V4: =255-HEX2DEC(U4) -> 237 | W4: =V4+1 -> 238 | X4: =IF(W4=256,"00",DEC2HEX(W4,2)) -> EE
A5: 16 | B5: E0 | C5: 10 | D5: 224 | E5: 16 | F5: =ROUND(Advance_curve!$K17,0) -> 6 | G5: =ROUND(Advance_curve!$K18,0) -> 6 | H5: =ROUND(Advance_curve!$K19,0) -> 7 | I5: =ROUND(Advance_curve!$K20,0) -> 7 | J5: =ROUND(Advance_curve!$K21,0) -> 8 | K5: =ROUND(Advance_curve!$K22,0) -> 8 | L5: =ROUND(Advance_curve!$K23,0) -> 8 | M5: =ROUND(Advance_curve!K24,0) -> 9 | O5: :10E0100006000600070007000800080008000900C5 | Q5: 06 06 07 07 08 08 08 09 | S5: 315 | T5: 13B | U5: 3B | V5: 196 | W5: 197 | X5: C5
A6: 16 | B6: E0 | C6: 20 | D6: 224 | E6: 32 | F6: =ROUND(Advance_curve!$K25,0) -> 9 | G6: =ROUND(Advance_curve!$K26,0) -> 12 | H6: =ROUND(Advance_curve!$K27,0) -> 14 | I6: =ROUND(Advance_curve!$K28,0) -> 16 | J6: =ROUND(Advance_curve!$K29,0) -> 17 | K6: =ROUND(Advance_curve!$K30,0) -> 19 | L6: =ROUND(Advance_curve!$K31,0) -> 21 | M6: =ROUND(Advance_curve!$K32,0) -> 23 | O6: :10E0200009000C000E00100011001300150017006D | Q6: 09 0C 0E 10 11 13 15 17 | S6: 403 | T6: 193 | U6: 93 | V6: 108 | W6: 109 | X6: 6D
A7: 16 | B7: E0 | C7: 30 | D7: 224 | E7: 48 | F7: =ROUND(Advance_curve!$K33,0) -> 24 | G7: =ROUND(Advance_curve!$K34,0) -> 26 | H7: =ROUND(Advance_curve!$K35,0) -> 28 | I7: =ROUND(Advance_curve!$K36,0) -> 30 | J7: =ROUND(Advance_curve!$K37,0) -> 31 | K7: =ROUND(Advance_curve!$K38,0) -> 33 | L7: =ROUND(Advance_curve!$K39,0) -> 35 | M7: =ROUND(Advance_curve!$K40,0) -> 37 | O7: :10E0300018001A001C001E001F00210023002500EC | Q7: 18 1A 1C 1E 1F 21 23 25 | S7: 532 | T7: 214 | U7: 14 | V7: 235 | W7: 236 | X7: EC
A8: 16 | B8: E0 | C8: 40 | D8: 224 | E8: 64 | F8: =ROUND(Advance_curve!$K41,0) -> 39 | G8: =ROUND(Advance_curve!$K42,0) -> 40 | H8: =ROUND(Advance_curve!$K43,0) -> 42 | I8: =ROUND(Advance_curve!$K44,0) -> 44 | J8: =ROUND(Advance_curve!$K45,0) -> 46 | K8: =ROUND(Advance_curve!$K46,0) -> 47 | L8: =ROUND(Advance_curve!$K47,0) -> 49 | M8: =ROUND(Advance_curve!$K48,0) -> 51 | O8: :10E04000270028002A002C002E002F00310033006A | Q8: 27 28 2A 2C 2E 2F 31 33 | S8: 662 | T8: 296 | U8: 96 | V8: 105 | W8: 106 | X8: 6A
A9: 16 | B9: E0 | C9: 50 | D9: 224 | E9: 80 | F9: =ROUND(Advance_curve!$K49,0) -> 53 | G9: =ROUND(Advance_curve!$K50,0) -> 54 | H9: =ROUND(Advance_curve!$K51,0) -> 56 | I9: =ROUND(Advance_curve!$K52,0) -> 58 | J9: =ROUND(Advance_curve!$K53,0) -> 60 | K9: =ROUND(Advance_curve!$K54,0) -> 61 | L9: =ROUND(Advance_curve!$K55,0) -> 63 | M9: =ROUND(Advance_curve!$K56,0) -> 65 | O9: :10E050003500360038003A003C003D003F004100EA | Q9: 35 36 38 3A 3C 3D 3F 41 | S9: 790 | T9: 316 | U9: 16 | V9: 233 | W9: 234 | X9: EA
A10: 16 | B10: E0 | C10: 60 | D10: 224 | E10: 96 | F10: =ROUND(Advance_curve!$K57,0) -> 67 | G10: =ROUND(Advance_curve!$K58,0) -> 69 | H10: =ROUND(Advance_curve!$K59,0) -> 70 | I10: =ROUND(Advance_curve!$K60,0) -> 72 | J10: =ROUND(Advance_curve!$K61,0) -> 74 | K10: =ROUND(Advance_curve!$K62,0) -> 76 | L10: =ROUND(Advance_curve!$K63,0) -> 77 | M10: =ROUND(Advance_curve!$K64,0) -> 79 | O10: :10E0600043004500460048004A004C004D004F0068 | Q10: 43 45 46 48 4A 4C 4D 4F | S10: 920 | T10: 398 | U10: 98 | V10: 103 | W10: 104 | X10: 68
A11: 16 | B11: E0 | C11: 70 | D11: 224 | E11: 112 | F11: =ROUND(Advance_curve!$K65,0) -> 81 | G11: =ROUND(Advance_curve!$K66,0) -> 83 | H11: =ROUND(Advance_curve!$K67,0) -> 84 | I11: =ROUND(Advance_curve!$K68,0) -> 86 | J11: =ROUND(Advance_curve!$K69,0) -> 88 | K11: =ROUND(Advance_curve!$K70,0) -> 90 | L11: =ROUND(Advance_curve!$K71,0) -> 92 | M11: =ROUND(Advance_curve!$K72,0) -> 93 | O11: :10E07000510053005400560058005A005C005D00E7 | Q11: 51 53 54 56 58 5A 5C 5D | S11: 1049 | T11: 419 | U11: 19 | V11: 230 | W11: 231 | X11: E7
A12: 16 | B12: E0 | C12: 80 | D12: 224 | E12: 128 | F12: =ROUND(Advance_curve!$K73,0) -> 95 | G12: =ROUND(Advance_curve!$K74,0) -> 97 | H12: =ROUND(Advance_curve!$K75,0) -> 99 | I12: =ROUND(Advance_curve!$K76,0) -> 100 | J12: =ROUND(Advance_curve!$K77,0) -> 102 | K12: =ROUND(Advance_curve!$K78,0) -> 104 | L12: =ROUND(Advance_curve!$K79,0) -> 106 | M12: =ROUND(Advance_curve!$K80,0) -> 108 | O12: :10E080005F00610063006400660068006A006C0065 | Q12: 5F 61 63 64 66 68 6A 6C | S12: 1179 | T12: 49B | U12: 9B | V12: 100 | W12: 101 | X12: 65
A13: 16 | B13: E0 | C13: 90 | D13: 224 | E13: 144 | F13: =ROUND(Advance_curve!$K81,0) -> 109 | G13: =ROUND(Advance_curve!$K82,0) -> 111 | H13: =ROUND(Advance_curve!$K83,0) -> 114 | I13: =ROUND(Advance_curve!$K84,0) -> 118 | J13: =ROUND(Advance_curve!$K85,0) -> 121 | K13: =ROUND(Advance_curve!$K86,0) -> 124 | L13: =ROUND(Advance_curve!$K87,0) -> 127 | M13: =ROUND(Advance_curve!$K88,0) -> 129 | O13: :10E090006D006F007200760079007C007F008100C7 | Q13: 6D 6F 72 76 79 7C 7F 81 | S13: 1337 | T13: 539 | U13: 39 | V13: 198 | W13: 199 | X13: C7
A14: 16 | B14: E0 | C14: A0 | D14: 224 | E14: 160 | F14: =ROUND(Advance_curve!$K89,0) -> 52 | G14: =ROUND(Advance_curve!$K90,0) -> 53 | H14: =ROUND(Advance_curve!$K91,0) -> 54 | I14: =ROUND(Advance_curve!$K92,0) -> 55 | J14: =ROUND(Advance_curve!$K93,0) -> 56 | K14: =ROUND(Advance_curve!$K94,0) -> 57 | L14: =ROUND(Advance_curve!$K95,0) -> 58 | M14: =ROUND(Advance_curve!$K96,0) -> 59 | O14: :10E0A0003400350036003700380039003A003B00B4 | Q14: 34 35 36 37 38 39 3A 3B | S14: 844 | T14: 34C | U14: 4C | V14: 179 | W14: 180 | X14: B4
A15: 16 | B15: E0 | C15: B0 | D15: 224 | E15: 176 | F15: =ROUND(Advance_curve!K97,0) -> 60 | G15: =ROUND(Advance_curve!K98,0) -> 61 | H15: =ROUND(Advance_curve!K99,0) -> 62 | I15: =ROUND(Advance_curve!K100,0) -> 63 | J15: =ROUND(Advance_curve!K101,0) -> 63 | K15: =ROUND(Advance_curve!K102,0) -> 64 | L15: =ROUND(Advance_curve!K103,0) -> 66 | M15: =ROUND(Advance_curve!K104,0) -> 73 | O15: :10E0B0003C003D003E003F003F0040004200490060 | Q15: 3C 3D 3E 3F 3F 40 42 49 | S15: 928 | T15: 3A0 | U15: A0 | V15: 95 | W15: 96 | X15: 60
A16: 16 | B16: E0 | C16: C0 | D16: 224 | E16: 192 | F16: =ROUND(Advance_curve!$K105,0) -> 73 | G16: =ROUND(Advance_curve!$K106,0) -> 74 | H16: =ROUND(Advance_curve!$K107,0) -> 75 | I16: =ROUND(Advance_curve!$K108,0) -> 75 | J16: =ROUND(Advance_curve!$K109,0) -> 76 | K16: =ROUND(Advance_curve!$K110,0) -> 77 | L16: =ROUND(Advance_curve!$K111,0) -> 77 | M16: =ROUND(Advance_curve!$K112,0) -> 78 | O16: :10E0C00049004A004B004B004C004D004D004E00F3 | Q16: 49 4A 4B 4B 4C 4D 4D 4E | S16: 1037 | T16: 40D | U16: 0D | V16: 242 | W16: 243 | X16: F3
A17: 16 | B17: E0 | C17: D0 | D17: 224 | E17: 208 | F17: =ROUND(Advance_curve!$K113,0) -> 79 | G17: =ROUND(Advance_curve!$K114,0) -> 79 | H17: =ROUND(Advance_curve!$K115,0) -> 80 | I17: =ROUND(Advance_curve!$K116,0) -> 80 | J17: =ROUND(Advance_curve!$K117,0) -> 81 | K17: =ROUND(Advance_curve!$K118,0) -> 82 | L17: =ROUND(Advance_curve!$K119,0) -> 82 | M17: =ROUND(Advance_curve!$K120,0) -> 83 | O17: =":"&DEC2HEX(A17,2)&B17&C17&"00"&DEC2HEX(F17,2)&"00"&DEC2HEX(G17,2)&"00"&DEC2HEX(H17,2)&"00"&DEC2HEX(I17,2)&"00"&DEC2HEX(J17,2)&"00"&DEC2HEX(K17,2)&"00"&DEC2HEX(L17,2)&"00"&DEC2HEX(M17,2)&"00"&X17 -> :10E0D0004F004F00500050005100520052005300BA | Q17: =DEC2HEX(F17,2)&" "&DEC2HEX(G17,2)&" "&DEC2HEX(H17,2)&" "&DEC2HEX(I17,2)&" "&DEC2HEX(J17,2)&" "&DEC2HEX(K17,2)&" "&DEC2HEX(L17,2)&" "&DEC2HEX(M17,2) -> 4F 4F 50 50 51 52 52 53 | S17: 1094 | T17: 446 | U17: 46 | V17: 185 | W17: 186 | X17: BA
A18: 16 | B18: E0 | C18: E0 | D18: 224 | E18: 224 | F18: =ROUND(Advance_curve!$K121,0) -> 84 | G18: =ROUND(Advance_curve!$K122,0) -> 84 | H18: =ROUND(Advance_curve!$K123,0) -> 85 | I18: =ROUND(Advance_curve!$K124,0) -> 86 | J18: =ROUND(Advance_curve!$K125,0) -> 86 | K18: =ROUND(Advance_curve!$K126,0) -> 87 | L18: =ROUND(Advance_curve!$K127,0) -> 87 | M18: =ROUND(Advance_curve!$K128,0) -> 88 | O18: :10E0E0005400540055005600560057005700580081 | Q18: =DEC2HEX(F18,2)&" "&DEC2HEX(G18,2)&" "&DEC2HEX(H18,2)&" "&DEC2HEX(I18,2)&" "&DEC2HEX(J18,2)&" "&DEC2HEX(K18,2)&" "&DEC2HEX(L18,2)&" "&DEC2HEX(M18,2) -> 54 54 55 56 56 57 57 58 | S18: 1151 | T18: 47F | U18: 7F | V18: 128 | W18: 129 | X18: 81
A19: 16 | B19: E0 | C19: F0 | D19: 224 | E19: 240 | F19: =ROUND(Advance_curve!$K129,0) -> 89 | G19: =ROUND(Advance_curve!$K130,0) -> 89 | H19: =ROUND(Advance_curve!$K131,0) -> 90 | I19: =ROUND(Advance_curve!$K132,0) -> 91 | J19: =ROUND(Advance_curve!$K133,0) -> 91 | K19: =ROUND(Advance_curve!$K134,0) -> 92 | L19: =ROUND(Advance_curve!$K135,0) -> 93 | M19: =ROUND(Advance_curve!$K136,0) -> 93 | O19: :10E0F000590059005A005B005B005C005D005D0048 | Q19: =DEC2HEX(F19,2)&" "&DEC2HEX(G19,2)&" "&DEC2HEX(H19,2)&" "&DEC2HEX(I19,2)&" "&DEC2HEX(J19,2)&" "&DEC2HEX(K19,2)&" "&DEC2HEX(L19,2)&" "&DEC2HEX(M19,2) -> 59 59 5A 5B 5B 5C 5D 5D | S19: 1208 | T19: 4B8 | U19: B8 | V19: 71 | W19: 72 | X19: 48
A20: 16 | B20: E1 | C20: =DEC2HEX(E20,2) -> 00 | D20: 225 | E20: 0 | F20: =ROUND(Advance_curve!$K137,0) -> 94 | G20: =ROUND(Advance_curve!$K138,0) -> 95 | H20: =ROUND(Advance_curve!$K139,0) -> 95 | I20: =ROUND(Advance_curve!$K140,0) -> 96 | J20: =ROUND(Advance_curve!$K141,0) -> 96 | K20: =ROUND(Advance_curve!$K142,0) -> 97 | L20: =ROUND(Advance_curve!$K143,0) -> 98 | M20: =ROUND(Advance_curve!$K144,0) -> 98 | O20: :10E100005E005F005F00600060006100620062000E | Q20: 5E 5F 5F 60 60 61 62 62 | S20: 1010 | T20: 3F2 | U20: F2 | V20: 13 | W20: 14 | X20: 0E
A21: 16 | B21: E1 | C21: 10 | D21: 225 | E21: 16 | F21: =ROUND(Advance_curve!$K145,0) -> 99 | G21: =ROUND(Advance_curve!$K146,0) -> 100 | H21: =ROUND(Advance_curve!$K147,0) -> 100 | I21: =ROUND(Advance_curve!$K148,0) -> 101 | J21: =ROUND(Advance_curve!$K149,0) -> 102 | K21: =ROUND(Advance_curve!$K150,0) -> 102 | L21: =ROUND(Advance_curve!$K151,0) -> 103 | M21: =ROUND(Advance_curve!$K152,0) -> 104 | O21: :10E1100063006400640065006600660067006800D4 | Q21: 63 64 64 65 66 66 67 68 | S21: 1068 | T21: 42C | U21: 2C | V21: 211 | W21: 212 | X21: D4
A22: 16 | B22: E1 | C22: 20 | D22: 225 | E22: 32 | F22: =ROUND(Advance_curve!$K153,0) -> 104 | G22: =ROUND(Advance_curve!$K154,0) -> 105 | H22: =ROUND(Advance_curve!$K155,0) -> 105 | I22: =ROUND(Advance_curve!$K156,0) -> 106 | J22: =ROUND(Advance_curve!$K157,0) -> 107 | K22: =ROUND(Advance_curve!$K158,0) -> 107 | L22: =ROUND(Advance_curve!$K159,0) -> 108 | M22: =ROUND(Advance_curve!$K160,0) -> 109 | O22: :10E120006800690069006A006B006B006C006D009C | Q22: 68 69 69 6A 6B 6B 6C 6D | S22: 1124 | T22: 464 | U22: 64 | V22: 155 | W22: 156 | X22: 9C
A23: 16 | B23: E1 | C23: 30 | D23: 225 | E23: 48 | F23: =ROUND(Advance_curve!$K161,0) -> 109 | G23: =ROUND(Advance_curve!$K162,0) -> 110 | H23: =ROUND(Advance_curve!$K163,0) -> 111 | I23: =ROUND(Advance_curve!$K164,0) -> 111 | J23: =ROUND(Advance_curve!$K165,0) -> 112 | K23: =ROUND(Advance_curve!$K166,0) -> 112 | L23: =ROUND(Advance_curve!$K167,0) -> 113 | M23: =ROUND(Advance_curve!$K168,0) -> 114 | O23: :10E130006D006E006F006F00700070007100720063 | Q23: 6D 6E 6F 6F 70 70 71 72 | S23: 1181 | T23: 49D | U23: 9D | V23: 98 | W23: 99 | X23: 63
A24: 16 | B24: E1 | C24: 40 | D24: 225 | E24: 64 | F24: 0 | G24: 0 | H24: 0 | I24: 0 | J24: 0 | K24: 0 | L24: 0 | M24: 0 | O24: :10E1400000000000000000000000000000000000CF | Q24: 00 00 00 00 00 00 00 00 | S24: 305 | T24: 131 | U24: 31 | V24: 206 | W24: 207 | X24: CF
A25: 16 | B25: E1 | C25: 50 | D25: 225 | E25: 80 | F25: 0 | G25: 0 | H25: 0 | I25: 0 | J25: 0 | K25: 0 | L25: 0 | M25: 0 | O25: :10E1500000000000000000000000000000000000BF | Q25: 00 00 00 00 00 00 00 00 | S25: 321 | T25: 141 | U25: 41 | V25: 190 | W25: 191 | X25: BF
A26: 16 | B26: E1 | C26: 60 | D26: 225 | E26: 96 | F26: 0 | G26: 0 | H26: 0 | I26: 0 | J26: 0 | K26: 0 | L26: 0 | M26: 0 | O26: :10E1600000000000000000000000000000000000AF | Q26: 00 00 00 00 00 00 00 00 | S26: 337 | T26: 151 | U26: 51 | V26: 174 | W26: 175 | X26: AF
A27: 16 | B27: E1 | C27: 70 | D27: 225 | E27: 112 | F27: 0 | G27: 0 | H27: 0 | I27: 0 | J27: 0 | K27: 0 | L27: 0 | M27: 0 | O27: :10E17000000000000000000000000000000000009F | Q27: 00 00 00 00 00 00 00 00 | S27: 353 | T27: 161 | U27: 61 | V27: 158 | W27: 159 | X27: 9F
A28: 16 | B28: E1 | C28: 80 | D28: 225 | E28: 128 | F28: 0 | G28: 0 | H28: 0 | I28: 0 | J28: 0 | K28: 0 | L28: 0 | M28: 0 | O28: :10E18000000000000000000000000000000000008F | Q28: 00 00 00 00 00 00 00 00 | S28: 369 | T28: 171 | U28: 71 | V28: 142 | W28: 143 | X28: 8F
A29: 16 | B29: E1 | C29: 90 | D29: 225 | E29: 144 | F29: 0 | G29: 0 | H29: 0 | I29: 0 | J29: 0 | K29: 0 | L29: 0 | M29: 0 | O29: :10E19000000000000000000000000000000000007F | Q29: 00 00 00 00 00 00 00 00 | S29: 385 | T29: 181 | U29: 81 | V29: 126 | W29: 127 | X29: 7F
A30: 16 | B30: E1 | C30: A0 | D30: 225 | E30: 160 | F30: 0 | G30: 0 | H30: 0 | I30: 0 | J30: 0 | K30: 0 | L30: 0 | M30: 0 | O30: :10E1A000000000000000000000000000000000006F | Q30: 00 00 00 00 00 00 00 00 | S30: 401 | T30: 191 | U30: 91 | V30: 110 | W30: 111 | X30: 6F
A31: 16 | B31: E1 | C31: B0 | D31: 225 | E31: 176 | F31: 0 | G31: 0 | H31: 0 | I31: 0 | J31: 0 | K31: 0 | L31: 0 | M31: 0 | O31: :10E1B000000000000000000000000000000000005F | Q31: 00 00 00 00 00 00 00 00 | S31: 417 | T31: 1A1 | U31: A1 | V31: 94 | W31: 95 | X31: 5F
A32: 16 | B32: E1 | C32: C0 | D32: 225 | E32: 192 | F32: 0 | G32: 0 | H32: 0 | I32: 0 | J32: 0 | K32: 0 | L32: 0 | M32: 0 | O32: :10E1C000000000000000000000000000000000004F | Q32: =DEC2HEX(F32,2)&" "&DEC2HEX(G32,2)&" "&DEC2HEX(H32,2)&" "&DEC2HEX(I32,2)&" "&DEC2HEX(J32,2)&" "&DEC2HEX(K32,2)&" "&DEC2HEX(L32,2)&" "&DEC2HEX(M32,2) -> 00 00 00 00 00 00 00 00 | S32: =SUM(A32,D32:M32) -> 433 | T32: 1B1 | U32: B1 | V32: 78 | W32: 79 | X32: 4F
A33: 16 | B33: E1 | C33: D0 | D33: 225 | E33: 208 | F33: =Advance_curve!K1 -> 79 | G33: =Advance_curve!L1 -> 25 | H33: =Advance_curve!M1 -> 1 | I33: 0 | J33: 0 | K33: 0 | L33: 0 | M33: 0 | O33: =":"&DEC2HEX(A33,2)&B33&C33&"00"&DEC2HEX(F33,2)&"00"&DEC2HEX(G33,2)&"00"&DEC2HEX(H33,2)&"00"&DEC2HEX(I33,2)&"00"&DEC2HEX(J33,2)&"00"&DEC2HEX(K33,2)&"00"&DEC2HEX(L33,2)&"00"&DEC2HEX(M33,2)&"00"&X33 -> :10E1D0004F001900010000000000000000000000D6 | Q33: =DEC2HEX(F33,2)&" "&DEC2HEX(G33,2)&" "&DEC2HEX(H33,2)&" "&DEC2HEX(I33,2)&" "&DEC2HEX(J33,2)&" "&DEC2HEX(K33,2)&" "&DEC2HEX(L33,2)&" "&DEC2HEX(M33,2) -> 4F 19 01 00 00 00 00 00 | S33: =SUM(A33,D33:M33) -> 554 | T33: 22A | U33: 2A | V33: 213 | W33: 214 | X33: D6
A34: 16 | B34: E1 | C34: E0 | D34: 225 | E34: 224 | F34: =Advance_curve!N44 -> 160 | G34: 0 | H34: =Advance_curve!F5 -> 50 | I34: =Advance_curve!O42 -> 1 | J34: 200 | K34: =Advance_curve!O40 -> 1 | L34: =Advance_curve!O38 -> 1 | M34: =Advance_curve!O36 -> 0 | O34: :10E1E000A000000032000100C80001000100000092 | Q34: =DEC2HEX(F34,2)&" "&DEC2HEX(G34,2)&" "&DEC2HEX(H34,2)&" "&DEC2HEX(I34,2)&" "&DEC2HEX(J34,2)&" "&DEC2HEX(K34,2)&" "&DEC2HEX(L34,2)&" "&DEC2HEX(M34,2) -> A0 00 32 01 C8 01 01 00 | S34: =SUM(A34,D34:M34) -> 878 | T34: 36E | U34: 6E | V34: 145 | W34: 146 | X34: 92
A35: 16 | B35: E1 | C35: F0 | D35: 225 | E35: 240 | F35: =LowRPM!I2 -> 26 | G35: =INT((Advance_curve!C4/Advance_curve!N30)*(60*1000000)/Advance_curve!N34/256) -> 23 | H35: =IF(Advance_curve!N32="Auto",99,Advance_curve!N32/ 500) -> 4 | I35: =Advance_curve!N30 -> 8 | J35: 0 | K35: =Advance_curve!K5 -> 40 | L35: =Advance_curve!B9 -> 23 | M35: =Advance_curve!C5 -> 182 | O35: :10E1F0001A00170004000800000028001700B600ED | Q35: =DEC2HEX(F35,2)&" "&DEC2HEX(G35,2)&" "&DEC2HEX(H35,2)&" "&DEC2HEX(I35,2)&" "&DEC2HEX(J35,2)&" "&DEC2HEX(K35,2)&" "&DEC2HEX(L35,2)&" "&DEC2HEX(M35,2) -> 1A 17 04 08 00 28 17 B6 | S35: =SUM(A35,D35:M35) -> 787 | T35: 313 | U35: 13 | V35: 236 | W35: 237 | X35: ED
F36: End of File | O36: :00000001FF
O40: The checksum value is the two's complement of the least significant byte (LSB) of the sum of all decoded byte values in the record that precede the checksum.
O41: It is computed by summing the decoded byte values, extracting the LSB of the sum, and calculating the two's complement of the LSB
O42: (e.g., by inverting its bits and adding one).
O43: For example, in the case of the record :0300300002337A1E, the sum of the decoded byte values is 03 + 00 + 30 + 00 + 02 + 33 + 7A = E2.
O44: The two's complement of E2 is 1E, which is the checksum appearing at the end of the record.
O46: Pour effectuer un complément à 2 il faut :
O47: - Inverser tout les bits (1 en 0, 0 en 1) (ou faire 255-chiffre) pour faire le complement a 1
O48: puis ajouter 1 au résultat
O49: Ex: DECHEX(255-SOMME(B3:K3)+1) = DECHEX(255+1-SOMME(B3:K3)) = DECHEX(256-SOMME(B3:K3))
O50: le complement a 2 de 0 est egal a 0
O51: Si 2 derniers chiffres de h100 = 00: cksum OK
O53: Méthode 1 (1er onglet)
O54: C'est la méthode bestiale. On convertit le nombre (positif) en base 2, puis on inverse les bits et ensuite on ajoute 1 avec propagation d'une éventuelle retenue.
O56: Méthode 2 (2ème onglet)
O57: On utilise la formule suivante pour le complément à 2: Si X est le nombre négatif à convertir, la conversion de (2^16)-|X| en base 2 donne le résultat.
B73: :10E000001B
B74: :BBAAAATTHHHHHH.....HHHHCC
B75: BB est le nombre d'octets de données dans la ligne (en hexadécimal)
B76: AAAA est l'adresse absolue (ou relative) du début de la lign
B77: TT est le champ spécifiant le type
B78: HH...HHHH est le champ des données | J78: 00, données, contient les données et l'adresse 16 bit.
B79: CC est l'octet de checksum. C'est le complément à deux de la somme des valeurs binaires des octets de tous les autres champs. (Les calculs sont faits sur 8 bits, en ignorant les retenues.)
B81: Pour vérifier la validité des données, il suffit de faire la somme de tous les octets représentés, à partir des deux-points jusqu'à la fin de ligne (checksum inclus: BB+AA+AA+TT+HH+...+CC): le résultat attendu est 0 (modulo 256).

Sheet Accuracy
A1: CYLINDRE: | B1: 1 | C1: cyl
A2: STROKES | B2: 2 | C2: stk
A3: ACCURACY | B3: 3.4 | C3: us
A5: RPM | B5: ERROR
A6: 0 | B6: 0
A7: 1000 | B7: =$B$3/((1000*(60*$B$2)/(2*$B$1*$A7))/0.36) -> 0.0204
A8: 2000 | B8: 0.0408
A9: 3000 | B9: 0.0612
A10: 4000 | B10: 0.0816
A11: 5000 | B11: 0.102
A12: 6000 | B12: 0.1224
A13: 7000 | B13: 0.1428
A14: 8000 | B14: 0.1632
A15: 9000 | B15: 0.1836
A16: 10000 | B16: 0.204

Sheet formules
E1: TEMPS | F1: CYLINDRE | G1: RPM | H1: FREQUENCE | I1: PERIODE | J1: PERIODE | K1: 1° | M1: durée = | N1: degrés | O1: relatif pickup
E2: Nbr | F2: Nbr | G2: tr/mn | H2: Hz | I2: ms | J2: pour 2cyl 2tps | K2: ms | L2: us | M2: us | O2: =Advance_curve!F5 -> 50 | W2: 4 stk:
E3: 2 | F3: 1 | G3: 9000 | H3: =(2*$F$3*$G$3)/(60*$E$3) -> 150 | I3: =1000*(60*$E$3)/(2*$F$3*$G$3) -> 6.666666667 | J3: =1000*60/$G$3 -> 6.666666667 | K3: =I3/360 -> 0.01851851852 | L3: =I3/0.36 -> 18.51851852 | M3: 64000 | N3: =M3/L3 -> 3456 | O3: =Advance_curve!F5-N3 -> -3406 | W3: 1 cyl | X3: 1/2 spark every rotation | Y3: 720°
I4: =1000*I3 -> 6666.666667 | W4: 2 cyl | X4: 1 spark every rotation | Y4: 360°
G5: =(60*$H$5*$E$3)/(2*$F$3) -> 120 | H5: 2 | I5: =1000*(60*$E$3)/(2*$F$3*$G$5) -> 500 | J5: =1000*60/$G$5 -> 500 | K5: =I5/360 -> 1.388888889 | L5: =I5/0.36 -> 1388.888889 | N5: FRQ = (2*CYL*RPM) / (60*TEMPS) | W5: 3 cyl | X5: 1,5 spark every rotation | Y5: 240°
N6: RPM = (60*FRQ*TEMPS) / ( 2*CYL) | W6: 4 cyl | X6: 2 sparks every rotation | Y6: 180°
G7: Délai | H7: => | I7: Délai | J7: Avance | N7: 1degré = (1000*1000*60*CYL) / ( 2*TEMPS*RPM)/360 | W7: 5 cyl | X7: 2,5 sparks every rotation | Y7: 144°
G8: us | I8: ° | J8: ° | N8: RPM= 60*1000000/ TMR1*256*presc/Fosc | W8: 6 cyl | X8: 3 sparks every rotation | Y8: 120°
G9: 9600 | I9: =G9/L3 -> 518.4 | J9: =Advance_curve!F5 -I9 -> -468.4 | N9: TMR1=(PER*Fosc)/ presc*255 | W9: 10 cyl | X9: 5 sparks every rotation | Y9: 72°
N10: FRQ = 1/TMR1H = 1/TMR1H * (255 * PRES/Fosc) = 1*1000000 / TMR1H* (255 * PRES/Fosc) | W10: 12 cyl | X10: 6 sparks every rotation | Y10: 60°
A11: 2.5 | G11: Frequence | H11: => | I11: RPM | J11: PERIODE
G12: 11 | H12: Hz | I12: =60*G12*$E$3/2*$F$3 -> 660 | J12: =1000/G12 -> 90.90909091 | K12: ms
G14: Periode | H14: => | I14: RPM | J14: FRQ | S14: 2 stk = 1 sprk per rev.
G15: 11 | H15: ms | I15: =60*(1000/G15)*$E$3/2*$F$3 -> 5454.545455 | J15: =1000/G15 -> 90.90909091 | K15: Hz | S15: 4 stk = 1 sprk per 2 rev.
S16: At 1000 rpm, 2stk = 1000 sparks/mn = 1000/60sec = 16Hz
B17: Clock | C17: Fosc | D17: Multiplier | E17: Delay | F17: Prescaler | G17: Nombre de | H17: Nombre | I17: Fréquence | J17: Régime | K17: Période | M17: TIMER1 | N17: Delay of: | P17: =IF(Q20>0,"Avance","RETARD") -> RETARD | S17: At 1000 rpm, 4stk = 500 sparks/mn = 500/60sec = 8Hz
G18: Cylindres | H18: de temps | M18: high | P18: BTDC | T18: Then to multiply but the number of cylinders
B19: MHz | C19: MHz | E19: us | I19: Hz | J19: tr/mn | K19: ms | L19: µs | M19: =IF(M20>127,"erreur","") ->  | N19: µs | O19: ms | P19: ms | Q19: degrees | T19: 2 stk x 1cyl = 16Hz
B20: =Advance_curve!C3 -> 16 | C20: =Advance_curve!C4 -> 4 | D20: 8 | E20: 20 | F20: =Advance_curve!N30 -> 8 | G20: =F3 -> 1 | H20: =E3 -> 2 | I20: =H3 -> 150 | J20: =(60*I20*H20)/(2*G20) -> 9000 | K20: =1000/I20 -> 6.666666667 | L20: =1000000/I20 -> 6666.666667 | M20: =INT(L20*C20/($F$20*255)) -> 13 | N20: =($E$20 *$M$20*$D$20) -> 2080 | O20: =N20/1000 -> 2.08 | P20: =(K20/360)*Advance_curve!F5 - O20 -> -1.154074074 | Q20: =(360/K20)*P20 -> -62.32 | T20: 2 stk x 2cyl = 30hz
D24: http://syskb.com/creer-une-liste-deroulante-dans-excel-2010/ | P24: DUREE | S24: F = (P/2)(N/60) => F=P*N/120
P25: us | S25: N: rpm
D26: TIMER 0 | E26: 8bits | J26: Timer1 | K26: 16bits = 65535 max | P26: 300
D27: Quartz a 4MHz | J27: Quartz a 4MHz | S27: Tension produite:
D28: 4 cycles d'horloge par operation: Fosc/4 or 4MHz/4 = 1MHz | J28: 4 cycles d'horloge par operation: Fosc/4 or 4MHz/4 = 1MHz | S28: Erms=(K * ω * N * θ ) / √2
D29: - Prescaler sur 256 dans le registre T0CON | J29: - Prescaler sur 8 dans le registre T1CON | S29: Erms=4,44 * K * F * N * θ
D30: - period of the frequency input to Timer 0 : | J30: - period of the frequency input to Timer 1 : (toutes les 8us , TMR1 avance d'un cran)
D31: 1/(1MHz/256) = 256us | J31: 1/(1MHz/8) = 8us | S31: Courant produit:
D32: This is the period of time for each count in Timer 0 i.e. | J32: This is the period of time for each count in Timer 1 i.e. | S32: I = (θ * N) / L
D33: 256 * 256us = 65536us = 65.636ms = 15.26Hz | J33: 65536 * 8us = 525ms = 1,9Hz
D35: Lorsque TMR0=10, il s'est écoulé 10x256us = 2560us = 2,6ms. | J35: PRESC=1 => TMR1L s'incrémente de 1 en 1us jusqu'a 255. TMR1H s'incremente de 1 en 256us, deborde toutes les 65ms
D36: Si entre temps le moteur a fait 1 tour, c'est qu'il tourne a 2,56ms par tour | J36: PRESC=2 => TMR1L s'incrémente de 1 en 2us jusqu'a 255. TMR1H s'incremente de 1 en 512us, deborde ici toutes les 131ms
D37: pour trouver des tours/mn: en 1mn (soit 60sec * 1000 = 60000ms) | J37: PRESC=4 => TMR1L s'incrémente de 1 en 4us jusqu'a 255. TMR1H s'incremente de 1 en 1024us, deborde ici toutes les 262ms
D38: 60000/2,56 = 23437 RPM | J38: PRESC=8 => TMR1L s'incrémente de 1 en 8us jusqu'a 255. TMR1H s'incremente de 1 en 2048us, deborde ici toutes les 525ms
J41: Quartz a 16MHz
J42: 4 cycles d'horloge par operation: Fosc/4 or 16MHz/4 = 4MHz
J43: - Prescaler sur 8 dans le registre T1CON | M43: (arrivé a 16bits 65535, TMR1 déborde et provoque INT)
J44: - period of the frequency input to Timer 1 : (toutes les 2us , TMR1 avance d'un cran)
J45: 1/(4MHz/8) = 2us
J46: This is the period of time for each count in Timer 1 i.e.
J47: 65536 * 2us = 131ms = 7,6Hz
J49: PRESC=1 => TMR1L s'incrémente de 1 en 0.25us jusqu'a 255. TMR1H s'incrémente de 1 en 64us et déborde en 16ms
J50: PRESC=2 => TMR1L s'incrémente de 1 en 0.5us jusqu'a 255. TMR1H s'incrémente de 1 en 128us et déborde en 32ms <===
J51: PRESC=4 => TMR1L s'incrémente de 1 en 1us jusqu'a 255. TMR1H s'incrémente de 1 en 256us et déborde en 65ms
J52: PRESC=8 => TMR1L s'incrémente de 1 en 2us jusqu'a 255. TMR1H s'incrémente de 1 en 512us et déborde en 131ms
J54: Calculator:
J55: http://eng-serve.com/pic/pic_timer.html
D56: Conversion BIN to HEX:
D58: Position | E58: 8 | F58: 7 | G58: 6 | H58: 5 | I58: 4 | J58: 3 | K58: 2 | L58: 1
D59: numero | E59: 7 | F59: 6 | G59: 5 | H59: 4 | I59: 3 | J59: 2 | K59: 1 | L59: 0
D60: Puissance | E60: 2^3 | F60: 2^2 | G60: 2^1 | H60: 2^0 | I60: 2^3 | J60: 2^2 | K60: 2^1 | L60: 2^0
D61: Valeur 2x4bits | E61: 8 | F61: 4 | G61: 2 | H61: 1 | I61: 8 | J61: 4 | K61: 2 | L61: 1
D62: Binaire | E62: 0 | F62: 1 | G62: 1 | H62: 0 | I62: 1 | J62: 0 | K62: 1 | L62: 1
D63: Valeur | E63: =E62*E61 -> 0 | F63: 4 | G63: 2 | H63: 0 | I63: 8 | J63: 0 | K63: 2 | L63: 1
D64: 2x4bits | E64: =E63+F63+G63+H63 -> 6 | I64: =I63+J63+K63+L63 -> 11
D65: Hexa 2x4bits | E65: =DEC2HEX(E64) -> 6 | I65: =DEC2HEX(I64) -> B
D66: Hexa | E66: =CONCATENATE(E65,I65) -> 6B

Sheet Calculs
A2: - Tant que pickup est bas (=0) 99% du temps, on met la valeur du TIMER0 dans la variable PERL (PERiode Low)
A3: - Chaque fois que TIMER0 provoque une INTerruption de debordement lorsqu'il arrive a 255, dans la routine d'interruption on incremente TMR0H (TIMER0 High)
A4: - Quand le pickup est haut (=1) (pulse) :
A5: - on memorise la valeur de TMR0H (Nbr de debordements de TIMER0), dans PERH (PERiode High)
A6: - et on memorise aussi la valeur du TIMER0 dans la variable PERL.
A7: - puis on RAZ les timers,
A9: - Ainsi la durée ecoulé entre 2 pickups est stockée dans PERL et PERH. Soit : (PERH x 255 ) + PERL
A11: Avec Q=4MHz, Prescaler = 256 et Preset = 0
A12: TIMER0 s'incremente toutes les 256us et deborde toutes les 256x256= 65536us = 65,5ms = 15,25Hz
A13: (utiliser: E:\Pic\Exemples\pic_calculations.xls)
A14: - donc [ (PERH * 255 ) + PERL ] * 65,5ms = durée entre 2 pulses.
A16: - Dans le soft:
A17: - on regarde si PERH est > a une certaine valeur, auquel cas le moteur tourne très lentement
A18: - on regarde si PERL est < a une certaine valeur, auquel cas le moteur tourne trop vite => arret des sparks pour limiter le regime
A19: - on regarde si PERL est < a une certaine valeur, auquel cas le moteur tourne très vite => spark immediat (sans avance)
A20: - entre ces 2 limites, on lit un tableau qui retourne un chiffre (delay) pour chacune des 95 valeurs de PERL
A21: - ce DELAY est le temps d'attente (nbr de boucles d'atttente) avant d'envoyer le spark
A23: Propriete de l'interruption:
F26: Liste deroulante
F27: selectionner la cellule
F28: donnees> validité des données> validite des donnees > afficher: liste
A38: Quand 4MHZ, a 15,4Hz = 924RPM, il faut 64935us pour faire un tour, donc TIMER0 a le temps d'aller jusqu’à 254 et de presque deborder:
A39: Quand 16MHZ, a 15,4Hz = 924RPM, il faut 64935us pour faire un tour, donc TIMER1-High (les débords de TMR1) a le temps d'aller jusqu’à 127

Sheet Dwell variable
D2: coef: | E2: DWELL = PERIODE * 50
B3: =Advance_curve!B8 -> TIMER1H count | D3: 50
B4: =Advance_curve!B9 -> 23 | C4: =$D$3*Advance_curve!B9 -> 1150 | D4: µs
B5: =Advance_curve!B10 -> 24 | C5: =$D$3*Advance_curve!B10 -> 1200
B6: =Advance_curve!B11 -> 25 | C6: =$D$3*Advance_curve!B11 -> 1250
B7: =Advance_curve!B12 -> 26 | C7: =$D$3*Advance_curve!B12 -> 1300
B8: =Advance_curve!B13 -> 27 | C8: =$D$3*Advance_curve!B13 -> 1350
B9: =Advance_curve!B14 -> 28 | C9: =$D$3*Advance_curve!B14 -> 1400
B10: =Advance_curve!B15 -> 29 | C10: =$D$3*Advance_curve!B15 -> 1450
B11: =Advance_curve!B16 -> 30 | C11: =$D$3*Advance_curve!B16 -> 1500
B12: =Advance_curve!B17 -> 31 | C12: =$D$3*Advance_curve!B17 -> 1550
B13: =Advance_curve!B18 -> 32 | C13: =$D$3*Advance_curve!B18 -> 1600
B14: =Advance_curve!B19 -> 33 | C14: =$D$3*Advance_curve!B19 -> 1650
B15: =Advance_curve!B20 -> 34 | C15: =$D$3*Advance_curve!B20 -> 1700
B16: =Advance_curve!B21 -> 35 | C16: =$D$3*Advance_curve!B21 -> 1750
B17: =Advance_curve!B22 -> 36 | C17: =$D$3*Advance_curve!B22 -> 1800
B18: =Advance_curve!B23 -> 37 | C18: =$D$3*Advance_curve!B23 -> 1850
B19: =Advance_curve!B24 -> 38 | C19: =$D$3*Advance_curve!B24 -> 1900
B20: =Advance_curve!B25 -> 39 | C20: =$D$3*Advance_curve!B25 -> 1950
B21: =Advance_curve!B26 -> 40 | C21: =$D$3*Advance_curve!B26 -> 2000
B22: =Advance_curve!B27 -> 41 | C22: =$D$3*Advance_curve!B27 -> 2050
B23: =Advance_curve!B28 -> 42 | C23: =$D$3*Advance_curve!B28 -> 2100
B24: =Advance_curve!B29 -> 43 | C24: =$D$3*Advance_curve!B29 -> 2150
B25: =Advance_curve!B30 -> 44 | C25: =$D$3*Advance_curve!B30 -> 2200
B26: =Advance_curve!B31 -> 45 | C26: =$D$3*Advance_curve!B31 -> 2250
B27: =Advance_curve!B32 -> 46 | C27: =$D$3*Advance_curve!B32 -> 2300
B28: =Advance_curve!B33 -> 47 | C28: =$D$3*Advance_curve!B33 -> 2350
B29: =Advance_curve!B34 -> 48 | C29: =$D$3*Advance_curve!B34 -> 2400
B30: =Advance_curve!B35 -> 49 | C30: =$D$3*Advance_curve!B35 -> 2450
B31: =Advance_curve!B36 -> 50 | C31: =$D$3*Advance_curve!B36 -> 2500
B32: =Advance_curve!B37 -> 51 | C32: =$D$3*Advance_curve!B37 -> 2550
B33: =Advance_curve!B38 -> 52 | C33: =$D$3*Advance_curve!B38 -> 2600
B34: =Advance_curve!B39 -> 53 | C34: =$D$3*Advance_curve!B39 -> 2650
B35: =Advance_curve!B40 -> 54 | C35: =$D$3*Advance_curve!B40 -> 2700
B36: =Advance_curve!B41 -> 55 | C36: =$D$3*Advance_curve!B41 -> 2750
B37: =Advance_curve!B42 -> 56 | C37: =$D$3*Advance_curve!B42 -> 2800
B38: =Advance_curve!B43 -> 57 | C38: =$D$3*Advance_curve!B43 -> 2850
B39: =Advance_curve!B44 -> 58 | C39: =$D$3*Advance_curve!B44 -> 2900
B40: =Advance_curve!B45 -> 59 | C40: =$D$3*Advance_curve!B45 -> 2950
B41: =Advance_curve!B46 -> 60 | C41: =$D$3*Advance_curve!B46 -> 3000
B42: =Advance_curve!B47 -> 61 | C42: =$D$3*Advance_curve!B47 -> 3050
B43: =Advance_curve!B48 -> 62 | C43: =$D$3*Advance_curve!B48 -> 3100
B44: =Advance_curve!B49 -> 63 | C44: =$D$3*Advance_curve!B49 -> 3150
B45: =Advance_curve!B50 -> 64 | C45: =$D$3*Advance_curve!B50 -> 3200
B46: =Advance_curve!B51 -> 65 | C46: =$D$3*Advance_curve!B51 -> 3250
B47: =Advance_curve!B52 -> 66 | C47: =$D$3*Advance_curve!B52 -> 3300
B48: =Advance_curve!B53 -> 67 | C48: =$D$3*Advance_curve!B53 -> 3350
B49: =Advance_curve!B54 -> 68 | C49: =$D$3*Advance_curve!B54 -> 3400
B50: =Advance_curve!B55 -> 69 | C50: =$D$3*Advance_curve!B55 -> 3450
B51: =Advance_curve!B56 -> 70 | C51: =$D$3*Advance_curve!B56 -> 3500
B52: =Advance_curve!B57 -> 71 | C52: =$D$3*Advance_curve!B57 -> 3550
B53: =Advance_curve!B58 -> 72 | C53: =$D$3*Advance_curve!B58 -> 3600
B54: =Advance_curve!B59 -> 73 | C54: =$D$3*Advance_curve!B59 -> 3650
B55: =Advance_curve!B60 -> 74 | C55: =$D$3*Advance_curve!B60 -> 3700
B56: =Advance_curve!B61 -> 75 | C56: =$D$3*Advance_curve!B61 -> 3750
B57: =Advance_curve!B62 -> 76 | C57: =$D$3*Advance_curve!B62 -> 3800
B58: =Advance_curve!B63 -> 77 | C58: =$D$3*Advance_curve!B63 -> 3850
B59: =Advance_curve!B64 -> 78 | C59: =$D$3*Advance_curve!B64 -> 3900
B60: =Advance_curve!B65 -> 79 | C60: =$D$3*Advance_curve!B65 -> 3950
B61: =Advance_curve!B66 -> 80 | C61: =$D$3*Advance_curve!B66 -> 4000
B62: =Advance_curve!B67 -> 81 | C62: =$D$3*Advance_curve!B67 -> 4050
B63: =Advance_curve!B68 -> 82 | C63: =$D$3*Advance_curve!B68 -> 4100
B64: =Advance_curve!B69 -> 83 | C64: =$D$3*Advance_curve!B69 -> 4150
B65: =Advance_curve!B70 -> 84 | C65: =$D$3*Advance_curve!B70 -> 4200
B66: =Advance_curve!B71 -> 85 | C66: =$D$3*Advance_curve!B71 -> 4250
B67: =Advance_curve!B72 -> 86 | C67: =$D$3*Advance_curve!B72 -> 4300
B68: =Advance_curve!B73 -> 87 | C68: =$D$3*Advance_curve!B73 -> 4350
B69: =Advance_curve!B74 -> 88 | C69: =$D$3*Advance_curve!B74 -> 4400
B70: =Advance_curve!B75 -> 89 | C70: =$D$3*Advance_curve!B75 -> 4450
B71: =Advance_curve!B76 -> 90 | C71: =$D$3*Advance_curve!B76 -> 4500
B72: =Advance_curve!B77 -> 91 | C72: =$D$3*Advance_curve!B77 -> 4550
B73: =Advance_curve!B78 -> 92 | C73: =$D$3*Advance_curve!B78 -> 4600
B74: =Advance_curve!B79 -> 93 | C74: =$D$3*Advance_curve!B79 -> 4650
B75: =Advance_curve!B80 -> 94 | C75: =$D$3*Advance_curve!B80 -> 4700
B76: =Advance_curve!B81 -> 95 | C76: =$D$3*Advance_curve!B81 -> 4750
B77: =Advance_curve!B82 -> 96 | C77: =$D$3*Advance_curve!B82 -> 4800
B78: =Advance_curve!B83 -> 97 | C78: =$D$3*Advance_curve!B83 -> 4850
B79: =Advance_curve!B84 -> 98 | C79: =$D$3*Advance_curve!B84 -> 4900
B80: =Advance_curve!B85 -> 99 | C80: =$D$3*Advance_curve!B85 -> 4950
B81: =Advance_curve!B86 -> 100 | C81: =$D$3*Advance_curve!B86 -> 5000
B82: =Advance_curve!B87 -> 101 | C82: =$D$3*Advance_curve!B87 -> 5050
B83: =Advance_curve!B88 -> 102 | C83: =$D$3*Advance_curve!B88 -> 5100
B84: =Advance_curve!B89 -> 103 | C84: =$D$3*Advance_curve!B89 -> 5150
B85: =Advance_curve!B90 -> 104 | C85: =$D$3*Advance_curve!B90 -> 5200
B86: =Advance_curve!B91 -> 105 | C86: =$D$3*Advance_curve!B91 -> 5250
B87: =Advance_curve!B92 -> 106 | C87: =$D$3*Advance_curve!B92 -> 5300
B88: =Advance_curve!B93 -> 107 | C88: =$D$3*Advance_curve!B93 -> 5350
B89: =Advance_curve!B94 -> 108 | C89: =$D$3*Advance_curve!B94 -> 5400
B90: =Advance_curve!B95 -> 109 | C90: =$D$3*Advance_curve!B95 -> 5450
B91: =Advance_curve!B96 -> 110 | C91: =$D$3*Advance_curve!B96 -> 5500
B92: =Advance_curve!B97 -> 111 | C92: =$D$3*Advance_curve!B97 -> 5550
B93: =Advance_curve!B98 -> 112 | C93: =$D$3*Advance_curve!B98 -> 5600
B94: =Advance_curve!B99 -> 113 | C94: =$D$3*Advance_curve!B99 -> 5650
B95: =Advance_curve!B100 -> 114 | C95: =$D$3*Advance_curve!B100 -> 5700
B96: =Advance_curve!B101 -> 115 | C96: =$D$3*Advance_curve!B101 -> 5750
B97: =Advance_curve!B102 -> 116 | C97: =$D$3*Advance_curve!B102 -> 5800
B98: =Advance_curve!B103 -> 117 | C98: =$D$3*Advance_curve!B103 -> 5850

Sheet Version
A2: v7.9r13c2 | B2: [HARD] Correction RA1 forcé a 1, car pullup R5 sur PCB
A3: v7.9r13c3 | B3: [XLS] Valeur de dwell passe de 2 choix (500,1000) a 6 choix (500,1000,2000,3000,4000,5000).
A4: v7.9r14c0 | B4: [SOFT,XLS] Ajout d'une valeur de dwell "AUTO" pour lequel la durée de dwell est proportionnelle a PERIODE.
A5: v7.9r14c1 | B5: [SOFT] Code protection OFF
A6: v7.9r15c0 | B6: [XLS] La valeur d'avance affichée dans l'onglet "advance_at_lowRPM" ne prenait pas en compte la position du pickup, c'était donc une valeur RELATIVE, pas ABSOLUE. Multiplicateur peut descendre a 1 (soft OK)
B7: [SOFT] si JP2 a la masse alors PIC bypass la courbe d'avance et envoi spark dés que detection front descendant du pickup
B8: [SOFT] RB3 (ex TP2) n'était pas forcé en OUTPUT
B9: [HARD] Suppression TP2 inutile
B10: [HARD] Reduction R7 de 330 a 180 (Sinon ne declenche pas les SCR de type BTA).
B11: [HARD] Suppression C9-100n car courant d'appel dépasse Imax du PIC
A12: v7.9r16c0 | B12: [XLS] La valeur d'avance affichée dans l'onglet "advance_at_lowRPM" était fausse.
B13: [SOFT] boucles d'attente pkp haut et bas en ASM: Precision x10 !!
B14: [XLS] Ajout documentation onglet README
A15: v7.9r16c1 | B15: [XLS] Tuning: a low RPM, le PIC attend 4us x PERIODE mais en vrai bcl dure plus de 4us, du coup il y a un offset de 5deg (20° affiché et 15° reels) pour simplifier correction: la valeur delay (I1) passe de 4 a 4.4
B16: [SOFT] Calibration de la boucle 40us
A17: v7.9r17c0 | B17: [XLS] Ajout d'un Rev Limiter a l'adresse Eprom 121 si swich JP2 a la masse
B18: [SOFT] JP2 (ex Bypass curve) est utilisé pour activer une limitation de RPM inferieur au maxi et stocké en @121 de l'eprom (Scooter légal)
A19: v7.9r17c1 | B19: [XLS] Renommage en accord avec code. Ajout RPM mini dans le titre onglet low_rpm
A20: v7.9r18c0 | B20: [XLS] Ajout d'un délai at Kick Start selectionnable par le user
B21: [SOFT] Si TMR1 déborde, PIC attend une pause d'une durée fixe VLRPM qui a été définie par le user et écrite en eprom. Sinon spark immediate entre 0 et 480RPM car TMR1 = 0 = croit que RPM élévés
A22: v7.9r19c0 | B22: [XLS] Ajout step 200us permet de positionner le pkp jusqu’à 360° btdc
B23: [SOFT] Ajout step 200us permet de positionner le pkp jusqu’à 360° btdc
B24: [SOFT] Si TMR1 déborde, PIC attend une pause de Nbr débordements * VLRPM qui a été définie par le user et écrite en eprom. Sinon spark immediate entre 0 et 480RPM car TMR1 = 0 = croit que RPM élévés
A25: v7.9r20c0 | B25: [SOFT] Suppresion JP1: autospark et RB3 output PWM
B26: [SOFT] RB3 devient RevCoil, RB5 devient sortie Tacho, meme signal que RA2
B27: [SOFT] Lecture de JP2 (rev limit) dés que pkp repasse a 1, donc possible de changer rpm limit pendant la marche
B28: [XLS] Modif commentaire dwell, Renommage en ACCDI_v79r20c0 (au lieu curve_adjust_16f628_xxxx)
B29: [XLS] Ajout onglet EPROM16 pour configurer 16F628 directement avec pickit3 sans besoin de icprog
B30: [HARD] option tachometer avec PIC 12F629
A31: v7.9r20c1 | B31: [XLS] Modif choix 2,4 stk wasted spark
B32: [XLS] Correction. Le temps en us pour 1° changeait selon 2 ou 4tps ! (faux en 4)
B33: [XLS] Portage sur 16F1827: reduction temps incompressible de 71 a 18us
A34: v7.9r20c2 | B34: [XLS] renommage en v79r20c1 avec suffixe 16F1847
B35: [XLS] remplacement onglet EEPROM8 par EEPROM16
B36: [XLS] Augmentation du nombre de trial de 20 a 50
B37: [XLS] Ajout d'une cellule C11 dans VLRPM pour ajuster l'avance a ces regimes
B38: [XLS] Modif 4MHz dans VLRPM
A39: v7.9r21c0 | B39: [SOFT] utilisation de INT sur RB4
B40: [XLS] pas de modification
A41: v7.9r21c1 | B41: [XLS] correction du nbr de debord max de TMR1 (40/prescaler au lieu de 5 fixe)
A42: v7.9r21c2 | B42: [XLS] Le hash calculé dans Eeprom16 ne sert a rien avec PICkit3 qui ne le lit pas. Mais MPASM le lirait…
B43: [XLS] Correction du Hash, il fallait additionner toute la ligne donc aussi 10h=16d qui est le nbr de bits
B44: [XLS] Correction dans eeprom16 , arrondi de valeur eeprom sinon affichage arrondi mais valeur decimal du coup checksum faux car somme fausse
B45: [XLS] Correction du hash, il n'y avait pas besoin de corriger la valeur de checksum
B46: [SOFT] Free trial passe de 50 a 200, Ne clignote plus
B47: [XLS] Free trial passe de 50 a 200
B48: [XLS] macro VLRPM utilise clock de advance_curve
A49: v7.9r21c3 | B49: [XLS] ERROR N°1: La derniere ligne de "advance curve" a TMR1max correspond par ex a 123 = 950rpm/16Hz/62ms mais en vrai le PIC n'arrive ici qu'a 32Hz/31ms
B50: car 16F1827 a 16MHz compte + vite et PERIODE arrive a 123 en 31ms (et pas en 62ms): Correction calcul RPM dans advance_curve
B51: ERROR N°2: dans adv_low_rpm a 10Hz/600rpm il est censé y avoir délai: 10ms mais 50ms en vrai !!
B52: Correction dans le calcul de la valeur de TMR1h qui ne tenait pas compte de la clock!
B53: [XLS] Selection nbr d'aimants sur rotor 1 or 2. Si 2 aimants on ignore la 2em pulse (desactivé)
A54: v7.9r22c0 | B54: [SOFT] 16F1827 a plus de RAM que 16F628 : Augmentation de 96 (max pour 1 variable) a 2x80 valeurs d'avance en RAM (max pour 2 variables)
B55: [XLS] 16F1827 a plus de RAM que 16F628 : Augmentation de 96 a 2x80 valeurs d'avance en RAM (onglets: eeprom16, adv_low_rpm, adv_curve,calcul,formule)
B56: [XLS] Ajout cell M40 pour ajuster le RPM de bascule de l'onglet "adv_curve" a "adv_low_rpm" en cas de warning
B57: [XLS] Correction limitation de RPM par JP2 (ne fonctionnait plus depuis 16F1827)
B58: [XLS] activation choix LED au départ. Ajout choix d'attendre un 1er tour moteur pour mesurer RPM ou pas
B59: [XLS] correction: il fallait soustraire l'hysteresis plus 200us de délai entre détection pickup et debut compte a rebours
B60: [SOFT] Calibration des boucles 20, 40us
B61: [SOFT,XLS] Suppression du choix délai 200us inutile
A62: v7.9r23c1 | B62: [SOFT,XLS] pour les 80 premieres valeurs d'avance RETARDL[] le step est selectionnable par user 20,40,100 mais pour valeurs RPM faible (RETARDH) c'est forcé a 100us pour eviter warning en haut et en bas
B63: [XLS] Correction, la colonne FRQ devait etre calculée d'apres TMR1 et non d'apres RPM. Maintenant c'est logique si on change 2tps ou 4tps
A64: v7.9r24c0 | B64: [XLS] Meme xls pour ACCDI et DCCDI, Ajout cellule N28 pour calibrer le délai "I4" en fct du temps de calcul du firmware (calibré en DCCDI en 028 RAF: ACCDI)
B65: [XLS] Desormais meme XLS pour AC et DCCDI
B66: [SOFT] Correction: Si pickup arreté a 1 durant 1sec, ne redemarrait plus car MEMTMR1DEB constamment refixé par INT
B67: [SOFT] Correction: il y avait une 2em spark de 0 jusqu'a 10Hz sauf de 7 a 8Hz (IOC n'etait pas a 0 avant boucle IOC)
B68: [SOFT] modif FW DCCDI 100us est trop gros a HIGH rev et 40us trop petit a LOW rev: RETARDL[79] utilise une valeur STEP selectionnable de 20 a 40us et RETARDH[79] utilise une valeur STEP forcée a 100us
A69: v7.9r25c0 | B69: [SOFT,XLS] Simplification a low RPM, un seul onglet d'avance plate ajustable car on tient compte des débordements de TMR1H
B70: [XLS] Correction formule du temps pour 1degré dans "lowrpm" pour que valeurs soient juste aussi en mode "4tps no wasted spark"
B71: [XLS] Correction: il fallait soustraire l'hysteresis de 200us plus le temps de calcul dans "LowRPM" aussi
B72: [XLS] Correction: a lowrpm et si TMRDEB = 0 alors le temps de calcul dans la bcl de decrement periode est 10µs plus longue. (le rajouter a I2 dans cell W9 ou [fait] le soustraire dans la bcl FC
B73: [SOFT] Correction: a lowrpm soustraire le temps de calcul dans la bcl FC VLRPM -10

Sheet Excel
A3: Conversion de valeurs: | C3: =SI(I2=2;2;(SI(I2=3;3;(SI(I2=4;4;(SI(I2=5;5;(SI(I2=6;6)))))))))
A5: Liste deroulante: | C5: Donnees> Validite des donnees
A8: les graphes n'affichent pas la valeur #N/A , utiliser #N/A pour faire disparaitre les points du graphe
A10: Pour afficher les liens d'une cellule: selectionner la > Formule > Reperer les antécédents/dependants
